Workbook

Sheet RESUMO MODULO TOTAL
B1: EXECUÇÃO DE SERVIÇOS DE IMPLANTAÇÃO DE PAVIMENTAÇÃO EM BLOCO DE CONCRETO INTERTRAVADO, EM VIAS DE MUNICÍPIOS DIVERSOS INSERIDOS NA ÁREA DE ATUAÇÃO DA CODEVASF, NO ESTADO SERGIPE | N1: SERGIPE
B2: LOGO DA LICITANTE | M2: SICRO: | N2: 2024-04-01
M3: SINAPI: | N3: 2024-07-01
M4: DATA BASE: | N4: =TODAY() -> 2024-10-31
M5: DESCONTO: | N5: 0 | O5: Inserir o desconto ofertado na plataforma
B6: =B1 -> EXECUÇÃO DE SERVIÇOS DE IMPLANTAÇÃO DE PAVIMENTAÇÃO EM BLOCO DE CONCRETO INTERTRAVADO, EM VIAS DE MUNICÍPIOS DIVERSOS INSERIDOS NA ÁREA DE ATUAÇÃO DA CODEVASF, NO ESTADO SERGIPE
B7: ITEM | C7: ORIGEM COMPOSIÇÃO | D7: CÓDIGO COMPOSIÇÃO | E7: DISCRIMINAÇÃO DOS SERVIÇOS | I7: BDI % = | J7: =BDI!D14 -> 0.2308 | K7: BDI DIFERENCIADO% = | L7: =BDI!D60 -> 0.15 | M7: R$/m² = | N7: =TRUNC(243.59*(1-$N$5),4) -> 243.59
I8: Total de m² | J8: Encargos Sociais: | K8: Horista (%) | L8: Mensalista (%) | M8: PREÇO UNITÁRIO COM BDI E DESCONTO | N8: PREÇO TOTAL COM BDI E DESCONTO
I9: ='MC MODULO'!G11*'MC MODULO'!C11*'MC MODULO'!C12 -> 120000 | K9: ='ENC. SOCIAIS'!$E$48 -> 112.54 | L9: ='ENC. SOCIAIS'!$F$48 -> 70.11
I10: UND | J10: QTDE. | K10: BDI | L10: CUSTO UNITÁRIO | Z10: TOTAL
E11: MOBILIZAÇÃO/DESMOBILIZAÇÃO
B12: 1 | C12: CODEVASF | D12: Mob | E12: Mobilização | I12: kmxfrente | J12: ='MC MODULO'!$F$20 -> 1200 | K12: =$J$7 -> 0.2308 | L12: =Mob!$B$37 -> 192.27 | M12: =TRUNC(L12*(1+K12)*(1-$N$5),2) -> 236.64 | N12: =TRUNC(J12*M12,2) -> 283968
B13: 2 | C13: CODEVASF | D13: Mob | E13: Desmobilização | I13: kmxfrente | J13: ='MC MODULO'!$F$25 -> 1200 | K13: =$J$7 -> 0.2308 | L13: =Mob!$B$37 -> 192.27 | M13: =TRUNC(L13*(1+K13)*(1-$N$5),2) -> 236.64 | N13: =TRUNC(J13*M13,2) -> 283968
E14: INSTALAÇÃO DE CANTEIRO
B15: 3 | C15: CODEVASF | D15: Canteiro | E15: Canteiro de Obras e Almoxarifado | I15: frente | J15: ='MC MODULO'!$B$32 -> 12 | K15: =$J$7 -> 0.2308 | L15: =' Canteiro'!$F$11 -> 3989.05 | M15: 4909.72 | N15: 58916.64
B16: 4 | C16: SINAPI | D16: 103689 | E16: Fornecimento e instalação de placa de obra com chapa galvanizada e estrutura de madeira. af_03/2022_ps | I16: m² | J16: ='MC MODULO'!$H$37 -> 96 | K16: =$J$7 -> 0.2308 | L16: =CPUs!J8 -> 348.92 | M16: 429.45 | N16: 41227.2
E17: ADMINISTRAÇÃO LOCAL DA OBRA
B18: 5 | C18: CODEVASF | D18: Adm Local | E18: Administração Local da Obra | I18: und | J18: 1 | K18: =$J$7 -> 0.2308 | L18: ='Adm Local'!$H$241 -> 1234267.56 | M18: 1519136.51 | N18: 1519136.51
E19: TERRAPLANAGEM
B20: 6 | C20: SICRO | D20: 5502114 | E20: Escavação, carga e transporte de material de 1ª categoria - DMT de 1.000 a 1.200 m - caminho de serviço em leito natural -com escavadeira e caminhão basculante de 14 m³ | I20: m³ | J20: ='MC MODULO'!$H$44 -> 33600 | K20: =$J$7 -> 0.2308 | L20: =CPUs!$J$21 -> 7.61 | M20: 9.36 | N20: 314496 | Z20: 366912
B21: 7 | C21: SICRO | D21: 4413942 | E21: Espalhamento de material em bota-fora | I21: m³ | J21: ='MC MODULO'!$H$49 -> 12000 | K21: =$J$7 -> 0.2308 | L21: =CPUs!$J$40 -> 1.93 | M21: 2.37 | N21: 28440 | Z21: 84084 | AE21: 1
E22: PAVIMENTAÇÃO
B23: 8 | C23: SINAPI | D23: 36170 | E23: Bloquete/piso intertravado de concreto - modelo onda/16 faces/retangular/tijolinho/paver/holandes/paralelepipedo, *22 cm c 11 cm, e= 8 cm, resistência de 35 Mpa (NBR 9781), cor natural | I23: m² | J23: ='MC MODULO'!$H$56 -> 120480 | K23: =$L$7 -> 0.15 | L23: 71.9 | M23: 82.68 | N23: 9961286.4
B24: 9 | C24: CODEVASF | D24: CODEVASF 325 | E24: Execução de pavimento em piso intertravado, com bloco 16 faces de 22 x 11 cm, espessura 8 cm. af_10/2022 - exclusive fornecimento de bloquete - adaptada do SINAPI (92404) | I24: m² | J24: ='MC MODULO'!$H$61 -> 120000 | K24: =$J$7 -> 0.2308 | L24: =CPUs!$J$58 -> 17.46 | M24: 21.48 | N24: 2577600 | Z24: 13037300.31
B25: 10 | C25: SICRO | D25: 5915014 | E25: Transporte com caminhão carroceria com capacidade de 11 t e com guindauto de 45 t.m - rodovia pavimentada | I25: tkm | J25: ='MC MODULO'!$H$66 -> 2112000 | K25: 0.2308 | L25: =CPUs!$J$71 -> 1.36 | M25: 1.67 | N25: 3527040
B26: 11 | C26: SICRO | D26: 5915321 | E26: Transporte com caminhão basculante de 14 m³ - rodovia pavimentada (colchão de areia) | I26: tkm | J26: ='MC MODULO'!$H$72 -> 511200 | K26: 0.2308 | L26: =CPUs!$J$85 -> 0.62 | M26: 0.76 | N26: 388512
B27: 12 | C27: SICRO | D27: 5915321 | E27: Transporte com caminhão basculante de 14 m³ - rodovia pavimentada (pó de pedra - rejunte) | I27: tkm | J27: ='MC MODULO'!$H$77 -> 88200 | K27: 0.2308 | L27: =CPUs!J99 -> 0.62 | M27: 0.76 | N27: 67032
B28: 13 | C28: SICRO | D28: 4011233 | E28: Sub-base estabilizada granulometricamente com mistura solo brita (70% - 30%) na pista com material de jazida e brita comercial | I28: m³ | J28: ='MC MODULO'!$H$82 -> 18000 | K28: 0.2308 | L28: =CPUs!$J$113 -> 73.41 | M28: 90.35 | N28: 1626300 | Z28: 15919722
B29: 14 | C29: SICRO | D29: 4011209 | E29: Regularização do subleito | I29: m² | J29: ='MC MODULO'!$H$87 -> 120000 | K29: 0.2308 | L29: =CPUs!J151 -> 1.12 | M29: 1.37 | N29: 164400 | Z29: 540540
E30: SINALIZAÇÃO
B31: 15 | C31: SICRO | D31: 5213440 | E31: Placa de regulamentação em aço D = 0,60 m - película retrorrefletiva tipo I + SI - fornecimento e implantação | I31: und | J31: ='MC MODULO'!$H$94 -> 72 | K31: =$J$7 -> 0.2308 | L31: =CPUs!$J$174 -> 252.07 | M31: 310.24 | N31: 22337.28 | Z31: 9985.95
B32: 16 | C32: SICRO | D32: 5213464 | E32: Placa de advertência em aço, lado de 0,60 m - película retrorrefletiva tipo I + SI - fornecimento e implantação | I32: und | J32: ='MC MODULO'!$H$99 -> 72 | K32: =$J$7 -> 0.2308 | L32: =CPUs!$J$196 -> 252.1 | M32: 310.28 | N32: 22340.16
B33: 17 | C33: SICRO | D33: 5213863 | E33: Suporte metálico galvanizado para placa de advertência ou regulamentação - lado ou diâmetro de 0,60 m - fornecimento e implantação | I33: und | J33: ='MC MODULO'!$H$105 -> 144 | K33: =$J$7 -> 0.2308 | L33: =CPUs!$J$218 -> 453.39 | M33: 558.03 | N33: 80356.32 | Z33: 13086.06
B34: 18 | C34: SICRO | D34: 5213400 | E34: Pintura de faixa com tinta acrílica - espessura de 0,4 mm | I34: m² | J34: ='MC MODULO'!$H$110 -> 4800 | K34: =$J$7 -> 0.2308 | L34: =CPUs!$J$254 -> 24.23 | M34: 29.82 | N34: 143136
E35: DRENAGEM
B36: 19 | C36: SICRO | D36: 2003373 | E36: Meio-fio de concreto - MFC 03 - areia e brita comerciais - fôrma de madeira | I36: m | J36: ='MC MODULO'!$H$117 -> 48000 | K36: =$J$7 -> 0.2308 | L36: =CPUs!$J$293 -> 67 | M36: 82.46 | N36: 3958080 | Z36: 4514640
B37: 20 | C37: SICRO | D37: 4915724 | E37: Caiação mecanizada com fixador de cal | I37: m² | J37: ='MC MODULO'!$H$122 -> 11520 | K37: =$J$7 -> 0.2308 | L37: =CPUs!$J$309 -> 1.83 | M37: 2.25 | N37: 25920
E38: SERVIÇOS COMPLEMENTARES
B39: 21 | C39: CODEVASF | D39: CODEVASF 104 | E39: Conserto de quebra no ramal na rua sem pavimento com fornecimento de material hidráulico | I39: m | J39: ='MC MODULO'!$H$129 -> 2400 | K39: =$J$7 -> 0.2308 | L39: =CPUs!$J$334 -> 23.54 | M39: 28.97 | N39: 69528 | Z39: 139854
E40: PROJETO EXECUTIVO
B41: 22 | C41: CODEVASF | D41: Proj. Executivo | E41: Projeto Executivo | I41: m² | J41: ='MC MODULO'!$H$136 -> 120000 | K41: =$J$7 -> 0.2308 | L41: ='Projeto Executivo'!$G$29 -> 2.37 | M41: 2.91 | N41: 349200 | Z41: 763671.38
E42: MOMENTO DE TRANSPORTE
B43: 23 | C43: SICRO | D43: 5914359 | E43: Transporte com caminhão basculante de 10 m³ - rodovia em leito natural | I43: tkm | J43: ='MOMENTO DE TRANSPORTE - PRINC'!$D$12+'MOMENTO DE TRANSPORTE - AUX'!$D$12 -> 41272.28 | K43: =$J$7 -> 0.2308 | L43: =CPUs!$J$354 -> 1.19 | M43: 1.46 | N43: 60257.52
B44: 24 | C44: SICRO | D44: 5914374 | E44: Transporte com caminhão basculante de 10 m³ - rodovia em revestimento primário | I44: tkm | J44: ='MOMENTO DE TRANSPORTE - PRINC'!$D$13+'MOMENTO DE TRANSPORTE - AUX'!$D$13 -> 165089.13 | K44: 0.2308 | L44: =CPUs!$J$368 -> 0.95 | M44: 1.16 | N44: 191503.39
B45: 25 | C45: SICRO | D45: 5914389 | E45: Transporte com caminhão basculante de 10 m³ - rodovia pavimentada | I45: tkm | J45: ='MOMENTO DE TRANSPORTE - PRINC'!$D$14+'MOMENTO DE TRANSPORTE - AUX'!$D$17 -> 3569147.87 | K45: 0.2308 | L45: =CPUs!$J$382 -> 0.78 | M45: 0.96 | N45: 3426381.95
B46: 26 | C46: SICRO | D46: 5914449 | E46: Transporte com caminhão carroceria de 15 t - rodovia em leito natural | I46: tkm | J46: ='MOMENTO DE TRANSPORTE - AUX'!$D$15 -> 920.02 | K46: 0.2308 | L46: =CPUs!$J$396 -> 1.06 | M46: 1.3 | N46: 1196.02
B47: 27 | C47: SICRO | D47: 5914464 | E47: Transporte com caminhão carroceria de 15 t - rodovia em revestimento primário | I47: tkm | J47: ='MOMENTO DE TRANSPORTE - AUX'!$D$16 -> 3680.07 | K47: 0.2308 | L47: =CPUs!$J$410 -> 0.85 | M47: 1.04 | N47: 3827.27
B48: 28 | C48: SICRO | D48: 5914479 | E48: Transporte com caminhão carroceria de 15 t - rodovia pavimentada | I48: tkm | J48: ='MOMENTO DE TRANSPORTE - AUX'!$D$17 -> 41400.77 | K48: 0.2308 | L48: =CPUs!$J$424 -> 0.69 | M48: 0.84 | N48: 34776.64
B49: VALOR TOTAL DO SRP | N49: =N7*I9 -> 29230800 | Z49: =SUM(Z19:Z41) -> 35389795.7

Sheet CRONOGRAMA TOTAL
A2: ='RESUMO MODULO TOTAL'!B1 -> EXECUÇÃO DE SERVIÇOS DE IMPLANTAÇÃO DE PAVIMENTAÇÃO EM BLOCO DE CONCRETO INTERTRAVADO, EM VIAS DE MUNICÍPIOS DIVERSOS INSERIDOS NA ÁREA DE ATUAÇÃO DA CODEVASF, NO ESTADO SERGIPE
A3: Cronograma Físico e Financeiro
A4: Item | B4: Descrição | C4: Total Por Etapa | D4: 30 DIAS | E4: 60 DIAS | F4: 90 DIAS | G4: 120 DIAS | H4: 150 DIAS | I4: 180 DIAS | J4: 210 DIAS | K4: 240 DIAS | L4: 270 DIAS | M4: 300 DIAS | N4: 330 DIAS | O4: 360 DIAS
B5: ='RESUMO MODULO TOTAL'!E11 -> MOBILIZAÇÃO/DESMOBILIZAÇÃO | C5: =SUM(D5:O5) -> 1 | G5: 0.5 | O5: 0.5
C6: =SUM('RESUMO MODULO TOTAL'!N12:N13) -> 567936 | G6: =C6*G5 -> 283968 | O6: =$C$6*O5 -> 283968 | P6: =SUM(D6:O6) -> 567936 | Q6: =IF(P6=C6,"OK","") -> OK
B7: ='RESUMO MODULO TOTAL'!E14 -> INSTALAÇÃO DE CANTEIRO | C7: =SUM(D7:O7) -> 1 | G7: 1
C8: =SUM('RESUMO MODULO TOTAL'!N15:N16) -> 100143.84 | G8: =$C$8*G7 -> 100143.84 | P8: =SUM(D8:O8) -> 100143.84 | Q8: =IF(P8=C8,"OK","") -> OK
B9: ='RESUMO MODULO TOTAL'!E17 -> ADMINISTRAÇÃO LOCAL DA OBRA | C9: =SUM(D9:O9) -> 1.000013277 | G9: =(G6+G8+G12+G14+G16+G18+G20+G22+G24)/($O$31-$C$10-$C$22) -> 0.01403791147 | H9: =(H6+H8+H12+H14+H16+H18+H20+H22+H24)/($O$31-$C$10-$C$22) -> 0.1393710504 | I9: 0.1393710504 | J9: 0.1393710504 | K9: 0.1393710504 | L9: 0.1393710504 | M9: 0.1393710504 | N9: 0.1393710504 | O9: 0.01037801293
C10: =SUM('RESUMO MODULO TOTAL'!N18) -> 1519136.51 | G10: =$C$10*G9 -> 21325.50383 | H10: 211723.6511 | I10: 211723.6511 | J10: 211723.6511 | K10: 211723.6511 | L10: 211723.6511 | M10: 211723.6511 | N10: 211723.6511 | O10: =C10-SUM(G10:N10) -> 15745.4483 | P10: =SUM(D10:O10) -> 1519136.51 | Q10: =IF(P10=C10,"OK","") -> OK
B11: ='RESUMO MODULO TOTAL'!E19 -> TERRAPLANAGEM | C11: =SUM(D11:O11) -> 1 | H11: =1/7 -> 0.1428571429 | I11: 0.1428571429 | J11: 0.1428571429 | K11: 0.1428571429 | L11: 0.1428571429 | M11: 0.1428571429 | N11: 0.1428571429
C12: =SUM('RESUMO MODULO TOTAL'!N20:N21) -> 342936 | H12: =$C$12*H11 -> 48990.85714 | I12: 48990.85714 | J12: 48990.85714 | K12: 48990.85714 | L12: 48990.85714 | M12: 48990.85714 | N12: 48990.85714 | P12: =SUM(D12:O12) -> 342936 | Q12: =IF(P12=C12,"OK","") -> OK
B13: ='RESUMO MODULO TOTAL'!E22 -> PAVIMENTAÇÃO | C13: =SUM(D13:O13) -> 1 | H13: =1/7 -> 0.1428571429 | I13: 0.1428571429 | J13: 0.1428571429 | K13: 0.1428571429 | L13: 0.1428571429 | M13: 0.1428571429 | N13: 0.1428571429
C14: =SUM('RESUMO MODULO TOTAL'!N23:N29) -> 18312170.4 | H14: =$C$14*H13 -> 2616024.343 | I14: 2616024.343 | J14: 2616024.343 | K14: 2616024.343 | L14: 2616024.343 | M14: 2616024.343 | N14: 2616024.343 | P14: =SUM(D14:O14) -> 18312170.4 | Q14: =IF(P14=C14,"OK","") -> OK
B15: ='RESUMO MODULO TOTAL'!E30 -> SINALIZAÇÃO | C15: =SUM(D15:O15) -> 1 | H15: =1/7 -> 0.1428571429 | I15: 0.1428571429 | J15: 0.1428571429 | K15: 0.1428571429 | L15: 0.1428571429 | M15: 0.1428571429 | N15: 0.1428571429
C16: =SUM('RESUMO MODULO TOTAL'!N31:N34) -> 268169.76 | H16: =$C$16*H15 -> 38309.96571 | I16: 38309.96571 | J16: 38309.96571 | K16: 38309.96571 | L16: 38309.96571 | M16: 38309.96571 | N16: 38309.96571 | P16: =SUM(D16:O16) -> 268169.76 | Q16: =IF(P16=C16,"OK","") -> OK
B17: ='RESUMO MODULO TOTAL'!E35 -> DRENAGEM | C17: =SUM(D17:O17) -> 1 | H17: =1/7 -> 0.1428571429 | I17: 0.1428571429 | J17: 0.1428571429 | K17: 0.1428571429 | L17: 0.1428571429 | M17: 0.1428571429 | N17: 0.1428571429
C18: =SUM('RESUMO MODULO TOTAL'!N36:N37) -> 3984000 | H18: =$C$18*H17 -> 569142.8571 | I18: =$C$18*I17 -> 569142.8571 | J18: =$C$18*J17 -> 569142.8571 | K18: 569142.8571 | L18: 569142.8571 | M18: 569142.8571 | N18: 569142.8571 | P18: =SUM(D18:O18) -> 3984000 | Q18: =IF(P18=C18,"OK","") -> OK
B19: ='RESUMO MODULO TOTAL'!E38 -> SERVIÇOS COMPLEMENTARES | C19: =SUM(D19:O19) -> 1 | H19: =1/7 -> 0.1428571429 | I19: 0.1428571429 | J19: 0.1428571429 | K19: 0.1428571429 | L19: 0.1428571429 | M19: 0.1428571429 | N19: 0.1428571429
C20: =SUM('RESUMO MODULO TOTAL'!N39) -> 69528 | H20: =$C$20*H19 -> 9932.571429 | I20: =$C$20*I19 -> 9932.571429 | J20: =$C$20*J19 -> 9932.571429 | K20: 9932.571429 | L20: 9932.571429 | M20: 9932.571429 | N20: 9932.571429 | P20: =SUM(D20:O20) -> 69528 | Q20: =IF(P20=C20,"OK","") -> OK
B21: ='RESUMO MODULO TOTAL'!E40 -> PROJETO EXECUTIVO | C21: =SUM(D21:O21) -> 1 | D21: 0.35 | E21: 0.35 | F21: 0.3
C22: =SUM('RESUMO MODULO TOTAL'!N41) -> 349200 | D22: =$C$22*D21 -> 122220 | E22: =$C$22*E21 -> 122220 | F22: 104760 | P22: =SUM(D22:O22) -> 349200 | Q22: =IF(P22=C22,"OK","") -> OK
B23: ='RESUMO MODULO TOTAL'!E42 -> MOMENTO DE TRANSPORTE | C23: =SUM(D23:O23) -> 1 | H23: =1/7 -> 0.1428571429 | I23: =1/7 -> 0.1428571429 | J23: 0.1428571429 | K23: 0.1428571429 | L23: 0.1428571429 | M23: 0.1428571429 | N23: 0.1428571429
C24: =SUM('RESUMO MODULO TOTAL'!N43:N48) -> 3717942.79 | H24: =$C$24*H23 -> 531134.6843 | I24: 531134.6843 | J24: 531134.6843 | K24: 531134.6843 | L24: 531134.6843 | M24: 531134.6843 | N24: 531134.6843 | P24: =SUM(D24:O24) -> 3717942.79 | Q24: =IF(P24=C24,"OK","") -> OK
A26: Porcentagem | D26: =SUM(D6+D8+D10+D12+D14+D16+D18+D20+D22+D24)/$O$31 -> 0.004181206125 | E26: =SUM(E6+E8+E10+E12+E14+E16+E18+E20+E22+E24)/$O$31 -> 0.004181206125 | F26: 0.003583890964 | G26: 0.01387021032 | H26: 0.1377060816 | I26: 0.1377060816 | J26: 0.1377060816 | K26: 0.1377060816 | L26: 0.1377060816 | M26: 0.1377060816 | N26: 0.1377060816 | O26: 0.01025334402
A27: Custo | D27: =$O$31*D26 -> 122220 | E27: =$O$31*E26 -> 122220 | F27: =$O$31*F26 -> 104760 | G27: 405437.3438 | H27: 4025258.93 | I27: 4025258.93 | J27: 4025258.93 | K27: 4025258.93 | L27: 4025258.93 | M27: 4025258.93 | N27: 4025258.93 | O27: 299713.4483
A28: Porcentagem Acumulado | D28: =D26 -> 0.004181206125 | E28: =D28+E26 -> 0.00836241225 | F28: =E28+F26 -> 0.01194630321 | G28: 0.02581651353 | H28: 0.1635225951 | I28: 0.3012286767 | J28: 0.4389347583 | K28: 0.5766408399 | L28: 0.7143469215 | M28: 0.8520530031 | N28: 0.9897590847 | O28: =N28+O26 -> 1.000012429
A29: Custo Acumulado | D29: =D27 -> 122220 | E29: =D29+E27 -> 244440 | F29: 349200 | G29: 754637.3438 | H29: 4779896.274 | I29: 8805155.203 | J29: 12830414.13 | K29: 16855673.06 | L29: 20880931.99 | M29: 24906190.92 | N29: 28931449.85 | O29: =N29+O27-363.3 -> 29230800
D31: Total Geral | N31: R$ | O31: ='RESUMO MODULO TOTAL'!$N$49 -> 29230800

Sheet BDI
B2: DETALHAMENTO DO BDI - SEM DESONERAÇÃO
B3: ='RESUMO MODULO TOTAL'!B1 -> EXECUÇÃO DE SERVIÇOS DE IMPLANTAÇÃO DE PAVIMENTAÇÃO EM BLOCO DE CONCRETO INTERTRAVADO, EM VIAS DE MUNICÍPIOS DIVERSOS INSERIDOS NA ÁREA DE ATUAÇÃO DA CODEVASF, NO ESTADO SERGIPE
B4: DESCRIÇÃO DOS SERVIÇOS | C4: PREÇO DE VENDA (%) | D4: CUSTO DIRETO (%)
B5: ADMINISTRAÇÃO CENTRAL | D5: 0.06
B6: DESPESAS FINANCEIRAS | C6: 0.0079
B7: SEGUROS E GARANTIAS CONTRATUAIS | C7: 0.005
B8: RISCOS | C8: 0.0025
B9: LUCRO OPERACIONAL | D9: 0.07
B10: PIS | C10: 0.0065
B11: COFINS | C11: 0.03
B12: ISSQN | C12: 0.03
B13: Contribuição Previdenciaria | C13: 0
C14: BDI | D14: =ROUND((1+(D5+D9))/(1-(C6+C7+C8+C10+C11+C12+C13))-1,4) -> 0.2308
B15: Observação: O percentual de ISSQN aqui utilizado consiste apenas em um referencial médio.
B16: O valor real do ISSQN a ser adotado deve ser aquele proveniente das alíquotas dos municípios situados na área de influência das obras.
B48: DETALHAMENTO DO BDI DIFERENCIADO - SEM DESONERAÇÃO
B49: ='RESUMO MODULO TOTAL'!B6 -> EXECUÇÃO DE SERVIÇOS DE IMPLANTAÇÃO DE PAVIMENTAÇÃO EM BLOCO DE CONCRETO INTERTRAVADO, EM VIAS DE MUNICÍPIOS DIVERSOS INSERIDOS NA ÁREA DE ATUAÇÃO DA CODEVASF, NO ESTADO SERGIPE
B50: DESCRIÇÃO DOS SERVIÇOS | C50: PREÇO DE VENDA (%) | D50: CUSTO DIRETO (%)
B51: ADMINISTRAÇÃO CENTRAL | D51: 0.0377
B52: DESPESA FINANCEIRAS | C52: 0.0102
B53: SEGUROS E GARANTIAS CONTRATUAIS | C53: 0.0025
B54: RISCOS | C54: 0.005
B55: LUCRO OPERACIONAL | D55: 0.05
B56: PIS | C56: 0.0065
B57: COFINS | C57: 0.03
B58: ISSQN | C58: 0
B59: Contribuição Previdenciaria | C59: 0
C60: BDI DIFERENCIADO | D60: =ROUND((1+(D51+D55))/(1-(C52+C53+C54+C56+C57+C58+C59))-1,4) -> 0.15
B61: Fonte da composição, valores de referência e fórmula do BDI: Instrução Normativa N° 62/DNIT SEDE

Sheet ENC. SOCIAIS
A6: ='RESUMO MODULO TOTAL'!B1 -> EXECUÇÃO DE SERVIÇOS DE IMPLANTAÇÃO DE PAVIMENTAÇÃO EM BLOCO DE CONCRETO INTERTRAVADO, EM VIAS DE MUNICÍPIOS DIVERSOS INSERIDOS NA ÁREA DE ATUAÇÃO DA CODEVASF, NO ESTADO SERGIPE
A8: DETALHAMENTO DOS ENCARGOS SOCIAIS (%)
A9: VIGÊNCIA A PARTIR DE 12/2023 | C9: COM DESONERAÇÃO | E9: SEM DESONERAÇÃO
C11: HORISTA | D11: MENSALISTA | E11: HORISTA | F11: MENSALISTA
A13: GRUPO A
A14: A1 | B14: INSS | C14: 0 | D14: 0 | E14: 20 | F14: 20
A15: A2 | B15: SESI | C15: 1.5 | D15: 1.5 | E15: 1.5 | F15: 1.5
A16: A3 | B16: SENAI | C16: 1 | D16: 1 | E16: 1 | F16: 1
A17: A4 | B17: INCRA | C17: 0.2 | D17: 0.2 | E17: 0.2 | F17: 0.2
A18: A5 | B18: SEBRAE | C18: 0.6 | D18: 0.6 | E18: 0.6 | F18: 0.6
A19: A6 | B19: Salário Educação | C19: 2.5 | D19: 2.5 | E19: 2.5 | F19: 2.5
A20: A7 | B20: Seguro Contra Acidentes de Trabalho | C20: 3 | D20: 3 | E20: 3 | F20: 3
A21: A8 | B21: FGTS | C21: 8 | D21: 8 | E21: 8 | F21: 8
A22: A9 | B22: SECONCI | C22: 1 | D22: 1 | E22: 0 | F22: -
A23: A | B23: Total | C23: =SUM(C14:C22) -> 17.8 | D23: =SUM(D14:D22) -> 17.8 | E23: =SUM(E14:E22) -> 36.8 | F23: =SUM(F14:F22) -> 36.8
A24: GRUPO B
A25: B1 | B25: Repouso Semanal Remunerado | C25: 17.88 | D25: - | E25: 17.87 | F25: -
A26: B2 | B26: Feriados | C26: 3.94 | D26: - | E26: 3.93 | F26: -
A27: B3 | B27: Auxílio-enfermidade | C27: 0.91 | D27: 0.69 | E27: 0.85 | F27: 0.64
A28: B4 | B28: 13° salário | C28: 10.98 | D28: 8.33 | E28: 10.98 | F28: 8.33
A29: B5 | B29: Licença-paternidade | C29: 0.07 | D29: 0.06 | E29: 0.06 | F29: 0.04
A30: B6 | B30: Faltas Justificadas | C30: 0.73 | D30: 0.56 | E30: 0.73 | F30: 0.56
A31: B7 | B31: Dias de chuva | C31: 1.45 | D31: - | E31: 1.51 | F31: -
A32: B8 | B32: Auxílio Acidente de Trabalho | C32: 0.11 | D32: 0.09 | E32: 0.1 | F32: 0.08
A33: B9 | B33: Férias Gozadas | C33: 11.35 | D33: 8.62 | E33: 11.37 | F33: 8.64
A34: B10 | B34: Salário Maternidade | C34: 0.03 | D34: 0.03 | E34: 0.04 | F34: 0.03
A35: B | B35: Total | C35: =SUM(C25:C34) -> 47.45 | D35: =SUM(D25:D34) -> 18.38 | E35: =SUM(E25:E34) -> 47.44 | F35: =SUM(F25:F34) -> 18.32
A36: GRUPO C
A37: C1 | B37: Aviso Prévio Indenizado | C37: 6.76 | D37: 5.14 | E37: 4.83 | F37: 3.67
A38: C2 | B38: Aviso Prévio Trabalhado | C38: 0.16 | D38: 0.12 | E38: 0.11 | F38: 0.09
A39: C3 | B39: Férias Indenizadas | C39: 2.28 | D39: 1.73 | E39: 2.35 | F39: 1.79
A40: C4 | B40: Depósito Rescisão Sem Justa Causa | C40: 3.81 | D40: 2.89 | E40: 2.71 | F40: 2.06
A41: C5 | B41: Indenização Adicional | C41: 0.57 | D41: 0.43 | E41: 0.41 | F41: 0.31
A42: C | B42: Total | C42: =SUM(C37:C41) -> 13.58 | D42: =SUM(D37:D41) -> 10.31 | E42: =SUM(E37:E41) -> 10.41 | F42: =SUM(F37:F41) -> 7.92
A43: GRUPO D
A44: D1 | B44: Reincidência de A sobre B | C44: 8.45 | D44: 3.27 | E44: 17.46 | F44: 6.74
A45: D2 | B45: Reincidência de Grupo A sobre Aviso Prévio Trabalhado e Reincidência do FGTS sobre Aviso Prévio Indenizado | C45: 0.57 | D45: 0.43 | E45: 0.43 | F45: 0.33
A46: D | B46: Total | C46: =SUM(C44:C45) -> 9.02 | D46: =SUM(D44:D45) -> 3.7 | E46: =SUM(E44:E45) -> 17.89 | F46: =SUM(F44:F45) -> 7.07
A48: T O T A L (%) | C48: =C23+C35+C42+C46 -> 87.85 | D48: =D23+D35+D42+D46 -> 50.19 | E48: =E23+E35+E42+E46 -> 112.54 | F48: =F23+F35+F42+F46 -> 70.11
H52: Fonte: Sinapi Cálculos e Parâmetros 6ª Edição - Atualizada em Junho de 2024

Sheet MC MODULO
A6: ='RESUMO MODULO TOTAL'!B1 -> EXECUÇÃO DE SERVIÇOS DE IMPLANTAÇÃO DE PAVIMENTAÇÃO EM BLOCO DE CONCRETO INTERTRAVADO, EM VIAS DE MUNICÍPIOS DIVERSOS INSERIDOS NA ÁREA DE ATUAÇÃO DA CODEVASF, NO ESTADO SERGIPE
A9: MEMÓRIA DE QUANTITATIVOS
A11: Extensão | B11: = | C11: 2000 | D11: m | F11: QUANTIDADE DE MÓDULOS | G11: 12
A12: Largura | B12: = | C12: 5 | D12: m
A14: Extensão | B14: = | C14: 2 | D14: km
B16: MOBILIZAÇÃO/DESMOBILIZAÇÃO
A17: 1 | B17: Mobilização
B19: Quantidade (módulos) | D19: Distância (km) | F19: Total (kmxfrente)
B20: =$G$11 -> 12 | D20: =Mob!$H$6 -> 100 | F20: =B20*D20 -> 1200
A22: 2 | B22: Desmobilização
B24: Quantidade (módulos) | D24: Distância (km) | F24: Total (kmxfrente)
B25: =$G$11 -> 12 | D25: =Mob!$H$6 -> 100 | F25: =B25*D25 -> 1200
B27: INSTALAÇÃO DO CANTEIRO
A29: 3 | B29: Canteiro de Obras e Almoxarifado
B31: Módulos(und)
B32: =G11 -> 12
A34: 4 | B34: Placa de Obra em Chapa de Aço Galvanizado
B36: Módulos(und) | C36: Comprimento(m) | D36: Largura (m) | E36: Quantidade (und) | H36: Total de área de placa (m²)
B37: =G11 -> 12 | C37: 2 | D37: 4 | E37: 1 | H37: =C37*D37*B37*E37 -> 96
B39: TERRAPLENAGEM
A41: 6 | B41: Escavação, carga e transporte de material de 1ª categoria - DMT de 1.000 a 1.200 m - caminho de serviço em leito natural - com escavadeira e caminhão basculante de 14 m³
B43: Extensão (m) | D43: Largura (m) | F43: Espessura (m) | H43: Volume (m³)
B44: =C11*$G$11 -> 24000 | C44: x | D44: =$C$12 -> 5 | E44: x | F44: =0.08+0.05+0.15 -> 0.28 | G44: = | H44: =B44*D44*F44 -> 33600
A46: 7 | B46: Espalhamento de material em bota-fora
B48: Extensão (m) | D48: Largura (m) | F48: Espessura (m) | H48: Volume (m³)
B49: =C11*$G$11 -> 24000 | C49: x | D49: =$C$12 -> 5 | E49: x | F49: 0.1 | G49: = | H49: =B49*D49*F49 -> 12000
B51: PAVIMENTAÇÃO
A53: 8 | B53: Bloquete/piso intertravado de concreto - modelo onda/16 faces/retangular/tijolinho/paver/holandes/paralelepipedo, *22 cm c 11 cm, e= 8 cm, resistência de 35 Mpa (NBR 9781), cor natural
B55: Área (m²) | C55: Coeficiente da comp. SINAPI (m²/m²) | H55: Área (m²)
B56: =H61 -> 120000 | C56: 1.004 | G56: = | H56: =C56*B56 -> 120480
A58: 9 | B58: Execução de pavimento em piso intertravado, com bloco 16 faces de 22 x 11 cm, espessura 8 cm. af_10/2022 - exclusive fornecimento de bloquete
B60: Extensão (m) | C60: Largura (m) | H60: Área (m²)
B61: =$C$11*G11 -> 24000 | C61: =$C$12 -> 5 | G61: = | H61: =C61*B61 -> 120000
A63: 10 | B63: Transporte com caminhão carroceria com capacidade de 11 t e com guindauto de 45 t.m - rodovia pavimentada (bloquete)
B65: Dimensões (m³) | C65: Densidade bloco Intertravado (t/m³) | D65: Distância (km) | H65: Momento de transporte (tkm)
B66: =H61*0.08 -> 9600 | C66: 2.2 | D66: 100 | G66: = | H66: =B66*C66*D66 -> 2112000
A69: 11 | B69: Transporte com caminhão basculante de 14 m³ - rodovia pavimentada (colchão de areia)
F70: DMT ATÉ 50 KM NÃO DEVE SER PAGA
B71: Área (m²) | C71: Coeficiente da comp. SINAPI (m³/m²) | D71: Densidade areia (t/m³) | E71: Distância (km) | H71: Momento de transporte (tkm)
B72: =H61 -> 120000 | C72: 0.0568 | D72: 1.5 | E72: =D66-50 -> 50 | G72: = | H72: =B72*D72*C72*E72 -> 511200
A74: 12 | B74: Transporte com caminhão basculante de 14 m³ - rodovia pavimentada (pó de pedra - rejunte)
F75: DMT ATÉ 50 KM NÃO DEVE SER PAGA
B76: Área (m²) | C76: Coeficiente da comp. SINAPI (m³/m²) | D76: Densidade pó de pedra (t/m³) | E76: Distância (km) | H76: Momento de transporte (tkm)
B77: =H61 -> 120000 | C77: 0.0098 | D77: 1.5 | E77: =D66-50 -> 50 | G77: = | H77: =B77*C77*D77*E77 -> 88200
A79: 13 | B79: Sub-base estabilizada granulometricamente com mistura solo brita (70% - 30%) na pista com material de jazida e brita comercial
B81: Extensão (m) | D81: Largura (m) | F81: Espessura da camada (m) | H81: Volume (m³)
B82: =C11*$G$11 -> 24000 | C82: x | D82: =$C$12 -> 5 | E82: x | F82: 0.15 | G82: = | H82: =B82*D82*F82 -> 18000
A84: 14 | B84: Regularização do subleito
B86: Extensão (m) | D86: Largura (m) | H86: Área (m2)
B87: =C11*$G$11 -> 24000 | C87: x | D87: =$C$12 -> 5 | G87: = | H87: =B87*D87 -> 120000
B89: SINALIZAÇÃO
A91: 15 | B91: Placa de regulamentação em aço D = 0,60 m - película retrorrefletiva tipo I + SI - fornecimento e implantação
B93: Extensão (km) | D93: Quantidade (und/km) | H93: Quantidade (und/km)
B94: =$C$14*$G$11 -> 24 | C94: x | D94: 3 | G94: = | H94: =B94*D94 -> 72
A96: 16 | B96: Placa de advertência em aço, lado de 0,60 m - película retrorrefletiva tipo I + SI - fornecimento e implantação
B98: Extensão (km) | D98: Quantidade (und/km) | H98: Quantidade (und/km)
B99: =$C$14*$G$11 -> 24 | C99: x | D99: 3 | G99: = | H99: =B99*D99 -> 72
A102: 17 | B102: Suporte metálico galvanizado para placa de advertência ou regulamentação - lado ou diâmetro de 0,60 m - fornecimento e implantação
B104: Extensão (km) | D104: Quantidade (und/km) | H104: Quantidade (und/km)
B105: =$C$14*$G$11 -> 24 | C105: x | D105: =D94+D99 -> 6 | G105: = | H105: =B105*D105 -> 144
A107: 18 | B107: Pintura de faixa com tinta acrílica - espessura de 0,4 mm (bordos)
B109: Extensão (m) | D109: Espessura (m) | F109: Quantidade (und) | H109: Quantidade (m²)
B110: =C11*G11 -> 24000 | C110: x | D110: 0.1 | E110: x | F110: 2 | G110: = | H110: =B110*D110*F110 -> 4800
B112: DRENAGEM
A114: 19 | B114: Meio-fio de concreto - MFC 03 - areia e brita comerciais - fôrma de madeira
B116: Extensão (m) | D116: Quantidade | H116: Extensão (m)
B117: =$C$11*$G$11 -> 24000 | C117: x | D117: 2 | G117: = | H117: =B117*D117 -> 48000
A119: 20 | B119: Caiação mecanizada com fixador de cal
B121: Extensão (m) | D121: Perímetro (m) | F121: Quantidade (und) | H121: Área (m²)
B122: =$C$11*$G$11 -> 24000 | C122: x | D122: =0.09+0.15 -> 0.24 | F122: 2 | G122: = | H122: =B122*D122*F122 -> 11520
B124: SERVIÇOS COMPLEMENTARES
A126: 21 | B126: Conserto de quebra no ramal na rua sem pavimento com fornecimento de material hidráulico
B128: Extensão (m) | H128: Extensão (m)
B129: =$C$11*G11 -> 24000 | E129: x | F129: 0.1 | G129: = | H129: =F129*B129 -> 2400
B131: PROJETO EXECUTIVO
A133: 22 | B133: Projeto Executivo
B135: Extensão (m) | D135: Largura (m) | H135: Área (m²)
B136: =$C$11*G11 -> 24000 | C136: x | D136: =C12 -> 5 | G136: = | H136: =B136*D136 -> 120000

Sheet MOMENTO DE TRANSPORTE - PRINC
B5: ='RESUMO MODULO TOTAL'!B1 -> EXECUÇÃO DE SERVIÇOS DE IMPLANTAÇÃO DE PAVIMENTAÇÃO EM BLOCO DE CONCRETO INTERTRAVADO, EM VIAS DE MUNICÍPIOS DIVERSOS INSERIDOS NA ÁREA DE ATUAÇÃO DA CODEVASF, NO ESTADO SERGIPE
B7: MEMÓRIA DE QUANTITATIVOS - MOMENTO DE TRANSPORTE (PRINCIPAL)
B8: DATA BASE: | C8: ='RESUMO MODULO TOTAL'!N2 -> 2024-04-01
C10: RESUMO DO TRANSPORTE PRINCIPAL
B11: CÓDIGO | C11: DESCRIÇÃO | D11: TKM
B12: 5914359 | C12: Transporte com caminhão basculante de 10 m³ - rodovia em leito natural | D12: =ROUND(SUMIF('MOMENTO DE TRANSPORTE - PRINC'!A:A,B12,'MOMENTO DE TRANSPORTE - PRINC'!K:K),2) -> 37134.18
B13: 5914374 | C13: Transporte com caminhão basculante de 10 m³ - rodovia em revestimento primário | D13: =ROUND(SUMIF('MOMENTO DE TRANSPORTE - PRINC'!A:A,B13,'MOMENTO DE TRANSPORTE - PRINC'!K:K),2) -> 148536.72
B14: 5914389 | C14: Transporte com caminhão basculante de 10 m³ - rodovia pavimentada | D14: =ROUND(SUMIF('MOMENTO DE TRANSPORTE - PRINC'!A:A,B14,'MOMENTO DE TRANSPORTE - PRINC'!K:K),2) -> 3527747.1
B16: TIPO (P, RP ou LN) | C16: DMT ESTIMADA (km)
B17: P | C17: 95
B19: COMPOSIÇÕES PRINCIPAIS
B20: SISTEMA DE CUSTOS REFERENCIAIS DE OBRAS - SICRO
B21: Custo Unitário de Referência | D21: =$C$8 -> 2024-04-01 | I21: Quantitativo | K21: m³
B22: 4011233 | C22: Sub-base estabilizada granulometricamente com mistura solo brita (70% - 30%) na pista com material de jazida e brita comercial | I22: =(SUMIF('RESUMO MODULO TOTAL'!D:D,B22,'RESUMO MODULO TOTAL'!J:J)) -> 18000
B23: D - ATIVIDADES AUXILIARES | D23: Quantidade | E23: Unidade
B24: 4016096 | C24: Escavação e carga de material de jazida com escavadeira hidráulica de 1,56 m³ | D24: 0.77019 | E24: m³
B26: F - MOMENTO DE TRANSPORTE | D26: Quantidade | E26: Unidade | F26: CÓDIGO TRANSPORTE
F27: LN | G27: RP | H27: P | I27: TIPO (P, RP ou LN) | J27: DMT ESTIMADA (km) | K27: QUANTITATIVO TOTAL DE TRANSPORTE (tkm)
A28: =IF(I28="P",H28,IF(I28="RP",G28,IF(I28="LN",F28,""))) -> 5914389 | B28: 4016096 | C28: Escavação e carga de material de jazida com escavadeira hidráulica de 1,56 m³ - Caminhão basculante com capacidade de 10 m³ - 188 kW | D28: 1.44411 | E28: tkm | F28: 5914359 | G28: 5914374 | H28: 5914389 | I28: =$B$17 -> P | J28: =$C$17 -> 95 | K28: =IF(ISBLANK(J28),"",J28*D28)*$I$22 -> 2469428.1
A29: =IF(I29="P",H29,IF(I29="RP",G29,IF(I29="LN",F29,""))) -> 5914389 | B29: M0191 | C29: Brita 1 - Caminhão basculante com capacidade de 10 m³ - 188 kW | D29: 0.6189 | E29: tkm | F29: 5914359 | G29: 5914374 | H29: 5914389 | I29: P | J29: =$C$17 -> 95 | K29: =IF(ISBLANK(J29),"",J29*D29)*$I$22 -> 1058319
B31: Obs.
B33: SISTEMA DE CUSTOS REFERENCIAIS DE OBRAS - SICRO
B34: Custo Unitário de Referência | D34: =$C$8 -> 2024-04-01 | I34: Quantitativo | K34: m
B35: 2003373 | C35: Meio-fio de concreto - MFC 03 - areia e brita comerciais - fôrma de madeira | I35: =(SUMIF('RESUMO MODULO TOTAL'!D:D,B35,'RESUMO MODULO TOTAL'!J:J)) -> 48000
B36: D - ATIVIDADES AUXILIARES | D36: Quantidade | E36: Unidade
B37: 1107892 | C37: Concreto fck = 20 MPa - confecção em betoneira e lançamento manual - areia e brita comerciais | D37: 0.042 | E37: m³
B38: 2003842 | C38: Enchimento de junta de concreto com argamassa asfáltica de densidade 1.700 kg/m³ - espessura de 1 cm | D38: 0.0595 | E38: kg
B39: 3103302 | C39: Fôrmas de tábuas de pinho para dispositivos de drenagem - utilização de 3 vezes - confecção, instalação e retirada | D39: 0.5475 | E39: m²
B40: 4805750 | C40: Escavação manual em material de 1ª categoria na profundidade de até 1 m | D40: 0.03 | E40: m³
B42: F - MOMENTO DE TRANSPORTE | D42: Quantidade | E42: Unidade | F42: CÓDIGO TRANSPORTE
F43: LN | G43: RP | H43: P | I43: TIPO (P, RP ou LN) | J43: DMT ESTIMADA (km) | K43: QUANTITATIVO TOTAL DE TRANSPORTE (tkm)
B46: TIPO (P, RP ou LN) | C46: DMT ESTIMADA (DISTRIBUIÇÃO DO ITEM NA PISTA
B47: RP | C47: 4
B49: SISTEMA DE CUSTOS REFERENCIAIS DE OBRAS - SICRO
B50: Custo Unitário de Referência | D50: =$C$8 -> 2024-04-01 | I50: Quantitativo | K50: un
B51: 4011233 | C51: Sub-base estabilizada granulometricamente com mistura solo brita (70% - 30%) na pista com material de jazida e brita comercial | I51: =(SUMIF('RESUMO MODULO TOTAL'!D:D,B51,'RESUMO MODULO TOTAL'!J:J)) -> 18000
B52: D - ATIVIDADES AUXILIARES | D52: Quantidade | E52: Unidade
B53: 4016096 | C53: Escavação e carga de material de jazida com escavadeira hidráulica de 1,56 m³ | D53: 0.77019 | E53: m³
B55: F - MOMENTO DE TRANSPORTE | D55: Quantidade | E55: Unidade | F55: CÓDIGO TRANSPORTE
F56: LN | G56: RP | H56: P | I56: TIPO (P, RP ou LN) | J56: DMT ESTIMADA (km) | K56: QUANTITATIVO TOTAL DE TRANSPORTE (tkm)
A57: =IF(I57="P",H57,IF(I57="RP",G57,IF(I57="LN",F57,""))) -> 5914374 | B57: 4016096 | C57: Escavação e carga de material de jazida com escavadeira hidráulica de 1,56 m³ - Caminhão basculante com capacidade de 10 m³ - 188 kW | D57: 1.44411 | E57: tkm | F57: 5914359 | G57: 5914374 | H57: 5914389 | I57: =$B$47 -> RP | J57: =$C$47 -> 4 | K57: =IF(ISBLANK(J57),"",J57*D57)*$I$51 -> 103975.92
A58: =IF(I58="P",H58,IF(I58="RP",G58,IF(I58="LN",F58,""))) -> 5914374 | B58: M0191 | C58: Brita 1 - Caminhão basculante com capacidade de 10 m³ - 188 kW | D58: 0.6189 | E58: tkm | F58: 5914359 | G58: 5914374 | H58: 5914389 | I58: =$B$47 -> RP | J58: =$C$47 -> 4 | K58: =IF(ISBLANK(J58),"",J58*D58)*$I$51 -> 44560.8
B60: Obs.
B62: SISTEMA DE CUSTOS REFERENCIAIS DE OBRAS - SICRO
B63: Custo Unitário de Referência | D63: =$C$8 -> 2024-04-01 | I63: Quantitativo | K63: m
B64: 2003373 | C64: Meio-fio de concreto - MFC 03 - areia e brita comerciais - fôrma de madeira | I64: =(SUMIF('RESUMO MODULO TOTAL'!D:D,B64,'RESUMO MODULO TOTAL'!J:J)) -> 48000
B65: D - ATIVIDADES AUXILIARES | D65: Quantidade | E65: Unidade
B66: 1107892 | C66: Concreto fck = 20 MPa - confecção em betoneira e lançamento manual - areia e brita comerciais | D66: 0.042 | E66: m³
B67: 2003842 | C67: Enchimento de junta de concreto com argamassa asfáltica de densidade 1.700 kg/m³ - espessura de 1 cm | D67: 0.0595 | E67: kg
B68: 3103302 | C68: Fôrmas de tábuas de pinho para dispositivos de drenagem - utilização de 3 vezes - confecção, instalação e retirada | D68: 0.5475 | E68: m²
B69: 4805750 | C69: Escavação manual em material de 1ª categoria na profundidade de até 1 m | D69: 0.03 | E69: m³
B71: F - MOMENTO DE TRANSPORTE | D71: Quantidade | E71: Unidade | F71: CÓDIGO TRANSPORTE
F72: LN | G72: RP | H72: P | I72: TIPO (P, RP ou LN) | J72: DMT ESTIMADA (km) | K72: QUANTITATIVO TOTAL DE TRANSPORTE (tkm)
B75: TIPO (P, RP ou LN) | C75: DMT ESTIMADA (km)
B76: LN | C76: 1
B78: SISTEMA DE CUSTOS REFERENCIAIS DE OBRAS - SICRO
B79: Custo Unitário de Referência | D79: =$C$8 -> 2024-04-01 | I79: Quantitativo | K79: un
B80: 4011233 | C80: Sub-base estabilizada granulometricamente com mistura solo brita (70% - 30%) na pista com material de jazida e brita comercial | I80: =(SUMIF('RESUMO MODULO TOTAL'!D:D,B80,'RESUMO MODULO TOTAL'!J:J)) -> 18000
B81: D - ATIVIDADES AUXILIARES | D81: Quantidade | E81: Unidade
B82: 4016096 | C82: Escavação e carga de material de jazida com escavadeira hidráulica de 1,56 m³ | D82: 0.77019 | E82: m³
B84: F - MOMENTO DE TRANSPORTE | D84: Quantidade | E84: Unidade | F84: CÓDIGO TRANSPORTE
F85: LN | G85: RP | H85: P | I85: TIPO (P, RP ou LN) | J85: DMT ESTIMADA (km) | K85: QUANTITATIVO TOTAL DE TRANSPORTE (tkm)
A86: =IF(I86="P",H86,IF(I86="RP",G86,IF(I86="LN",F86,""))) -> 5914359 | B86: 4016096 | C86: Escavação e carga de material de jazida com escavadeira hidráulica de 1,56 m³ - Caminhão basculante com capacidade de 10 m³ - 188 kW | D86: 1.44411 | E86: tkm | F86: 5914359 | G86: 5914374 | H86: 5914389 | I86: =$B$76 -> LN | J86: =$C$76 -> 1 | K86: =IF(ISBLANK(J86),"",J86*D86)*$I$80 -> 25993.98
A87: =IF(I87="P",H87,IF(I87="RP",G87,IF(I87="LN",F87,""))) -> 5914359 | B87: M0191 | C87: Brita 1 - Caminhão basculante com capacidade de 10 m³ - 188 kW | D87: 0.6189 | E87: tkm | F87: 5914359 | G87: 5914374 | H87: 5914389 | I87: =$B$76 -> LN | J87: =$C$76 -> 1 | K87: =IF(ISBLANK(J87),"",J87*D87)*$I$80 -> 11140.2
B89: Obs.
B91: SISTEMA DE CUSTOS REFERENCIAIS DE OBRAS - SICRO
B92: Custo Unitário de Referência | D92: =$C$8 -> 2024-04-01 | I92: Quantitativo | K92: m
B93: 2003373 | C93: Meio-fio de concreto - MFC 03 - areia e brita comerciais - fôrma de madeira | I93: =(SUMIF('RESUMO MODULO TOTAL'!D:D,B93,'RESUMO MODULO TOTAL'!J:J))*0.1 -> 4800
B94: D - ATIVIDADES AUXILIARES | D94: Quantidade | E94: Unidade
B95: 1107892 | C95: Concreto fck = 20 MPa - confecção em betoneira e lançamento manual - areia e brita comerciais | D95: 0.042 | E95: m³
B96: 2003842 | C96: Enchimento de junta de concreto com argamassa asfáltica de densidade 1.700 kg/m³ - espessura de 1 cm | D96: 0.0595 | E96: kg
B97: 3103302 | C97: Fôrmas de tábuas de pinho para dispositivos de drenagem - utilização de 3 vezes - confecção, instalação e retirada | D97: 0.5475 | E97: m²
B98: 4805750 | C98: Escavação manual em material de 1ª categoria na profundidade de até 1 m | D98: 0.03 | E98: m³
B100: F - MOMENTO DE TRANSPORTE | D100: Quantidade | E100: Unidade | F100: CÓDIGO TRANSPORTE
F101: LN | G101: RP | H101: P | I101: TIPO (P, RP ou LN) | J101: DMT ESTIMADA (km) | K101: QUANTITATIVO TOTAL DE TRANSPORTE (tkm)

Sheet MOMENTO DE TRANSPORTE - AUX
B5: ='RESUMO MODULO TOTAL'!B1 -> EXECUÇÃO DE SERVIÇOS DE IMPLANTAÇÃO DE PAVIMENTAÇÃO EM BLOCO DE CONCRETO INTERTRAVADO, EM VIAS DE MUNICÍPIOS DIVERSOS INSERIDOS NA ÁREA DE ATUAÇÃO DA CODEVASF, NO ESTADO SERGIPE
B7: MEMÓRIA DE QUANTITATIVOS - MOMENTO DE TRANSPORTE (AUXILIAR)
B8: DATA BASE: | C8: ='RESUMO MODULO TOTAL'!N2 -> 2024-04-01
C10: RESUMO DO TRANSPORTE AUXILIAR
B11: CODIGO | C11: DESCRIÇÃO | D11: TKM
B12: 5914359 | C12: Transporte com caminhão basculante de 10 m³ - rodovia em leito natural | D12: =ROUND(SUMIF($A:$A,B12,$K:$K),2) -> 4138.1
B13: 5914374 | C13: Transporte com caminhão basculante de 10 m³ - rodovia em revestimento primário | D13: 16552.41
B14: 5914389 | C14: Transporte com caminhão basculante de 10 m³ - rodovia pavimentada | D14: 186214.59
B15: 5914449 | C15: Transporte com caminhão carroceria de 15 t - rodovia em leito natural | D15: 920.02
B16: 5914464 | C16: Transporte com caminhão carroceria de 15 t - rodovia em revestimento primário | D16: 3680.07
B17: 5914479 | C17: Transporte com caminhão carroceria de 15 t - rodovia pavimentada | D17: 41400.77
B19: TIPO (P, RP ou LN) | C19: DMT ATÉ 50 KM NÃO DEVE SER PAGA | D19: DMT ACIMA DE 50 KM
B20: P | D20: 45
B22: SISTEMA DE CUSTOS REFERENCIAIS DE OBRAS - SICRO | I22: Quantitivo
B23: Custo Unitário de Referência | E23: =$C$8 -> 2024-04-01 | I23: (Coeficiente na composição principal) x (quantidade da principal no orçamento) | K23: m³
B24: 1107892 | C24: Concreto fck = 20 MPa - confecção em betoneira e lançamento manual - areia e brita comerciais | I24: =('MOMENTO DE TRANSPORTE - PRINC'!$D$37*VLOOKUP(C33,'RESUMO MODULO TOTAL'!D:R,7,FALSE)) -> 2016
B25: F - MOMENTO DE TRANSPORTE | D25: Quantidade | E25: Unidade | F25: DMT
F26: LN | G26: RP | H26: P | I26: TIPO (P, RP ou LN) | J26: DMT ESTIMADA (km) | K26: QUANTITATIVO TOTAL DE TRANSPORTE DE MATERIAL (tkm)
A27: =IF(I27="P",H27,IF(I27="RP",G27,IF(I27="LN",F27,""))) -> 5914479 | B27: M0030 | C27: Aditivo plastificante e retardador de pega para concreto e argamassa - Caminhão carroceria 15 t | D27: 0.00085 | E27: tkm | F27: 5914449 | G27: 5914464 | H27: 5914479 | I27: =$B$20 -> P | J27: =$D$20 -> 45 | K27: =IF(ISBLANK(J27),"",J27*(D27*$I$24)) -> 77.112
A28: =IF(I28="P",H28,IF(I28="RP",G28,IF(I28="LN",F28,""))) -> 5914389 | B28: M0082 | C28: Areia média lavada - Caminhão basculante 10 m³ | D28: 0.95001 | E28: tkm | F28: 5914359 | G28: 5914374 | H28: 5914389 | I28: =$B$20 -> P | J28: =$D$20 -> 45 | K28: =IF(ISBLANK(J28),"",J28*(D28*$I$24)) -> 86184.9072
A29: 5914389 | B29: M0191 | C29: Brita 1 - Caminhão basculante 10 m³ | D29: 0.55131 | E29: tkm | F29: 5914359 | G29: 5914374 | H29: 5914389 | I29: P | J29: 45 | K29: =IF(ISBLANK(J29),"",J29*(D29*$I$24)) -> 50014.8432
A30: 5914389 | B30: M0192 | C30: Brita 2 - Caminhão basculante 10 m³ | D30: 0.55131 | E30: tkm | F30: 5914359 | G30: 5914374 | H30: 5914389 | I30: P | J30: 45 | K30: =IF(ISBLANK(J30),"",J30*(D30*$I$24)) -> 50014.8432
A31: 5914479 | B31: M0424 | C31: Cimento Portland CP II - 32 - saco - Caminhão carroceria 15 t | D31: 0.28215 | E31: tkm | F31: 5914449 | G31: 5914464 | H31: 5914479 | I31: P | J31: 45 | K31: =IF(ISBLANK(J31),"",J31*(D31*$I$24)) -> 25596.648
B33: PRINCIPAL: | C33: 2003373
B35: SISTEMA DE CUSTOS REFERENCIAIS DE OBRAS - SICRO | I35: Quantitivo
B36: Custo Unitário de Referência | E36: =$C$8 -> 2024-04-01 | I36: (Coeficiente na composição principal) x (quantidade da principal no orçamento) | K36: kg
B37: 2003842 | C37: Enchimento de junta de concreto com argamassa asfáltica de densidade 1.700 kg/m³ - espessura de 1 cm | I37: =('MOMENTO DE TRANSPORTE - PRINC'!$D$38*VLOOKUP(C42,'RESUMO MODULO TOTAL'!D:R,7,FALSE)) -> 2856
B38: F - MOMENTO DE TRANSPORTE | D38: Quantidade | E38: Unidade | F38: DMT
F39: LN | G39: RP | H39: P | I39: TIPO (P, RP ou LN) | J39: DMT ESTIMADA (km) | K39: QUANTITATIVO TOTAL DE TRANSPORTE DE MATERIAL (tkm)
A40: =IF(I40="P",H40,IF(I40="RP",G40,IF(I40="LN",F40,""))) -> 5914479 | B40: M2158 | C40: Argamassa asfáltica - Caminhão carroceria com capacidade de 15 t - 188 Kw | D40: 0.001 | E40: tkm | F40: 5914449 | G40: 5914464 | H40: 5914479 | I40: =$B$20 -> P | J40: =$D$20 -> 45 | K40: =IF(ISBLANK(J40),"",J40*(D40*$I$37)) -> 128.52
B42: PRINCIPAL: | C42: 2003373
B44: SISTEMA DE CUSTOS REFERENCIAIS DE OBRAS - SICRO | I44: Quantitivo
B45: Custo Unitário de Referência | E45: =$C$8 -> 2024-04-01 | I45: (Coeficiente na composição principal) x (quantidade da principal no orçamento) | K45: m²
B46: 3103302 | C46: Fôrmas de tábuas de pinho para dispositivos de drenagem - utilização de 3 vezes - confecção, instalação e retirada | I46: =('MOMENTO DE TRANSPORTE - PRINC'!$D$39*VLOOKUP(C54,'RESUMO MODULO TOTAL'!D:R,7,FALSE)) -> 26280
B47: F - MOMENTO DE TRANSPORTE | D47: Quantidade | E47: Unidade | F47: DMT
F48: LN | G48: RP | H48: P | I48: TIPO (P, RP ou LN) | J48: DMT ESTIMADA (km) | K48: QUANTITATIVO TOTAL DE TRANSPORTE DE MATERIAL (tkm)
A49: =IF(I49="P",H49,IF(I49="RP",G49,IF(I49="LN",F49,""))) -> 5914479 | B49: M0560 | C49: Desmoldante para fôrmas de madeira - Caminhão carroceria com capacidade de 15 t - 188 Kw | D49: 2e-05 | E49: tkm | F49: 5914449 | G49: 5914464 | H49: 5914479 | I49: =$B$20 -> P | J49: =$D$20 -> 45 | K49: =IF(ISBLANK(J49),"",J49*(D49*$I$46)) -> 23.652
A50: =IF(I50="P",H50,IF(I50="RP",G50,IF(I50="LN",F50,""))) -> 5914479 | B50: M1205 | C50: Prego de ferro - Caminhão carroceria com capacidade de 15 t - 188 kW | D50: 2e-05 | E50: tkm | F50: 5914449 | G50: 5914464 | H50: 5914479 | I50: P | J50: 45 | K50: =IF(ISBLANK(J50),"",J50*(D50*$I$46)) -> 23.652
A51: 5914479 | B51: M0290 | C51: Tábua - E = 2,5 cm e L = 10 cm - Caminhão carroceria com capacidade de 15 t - 188 kW | D51: 0.00304 | E51: tkm | F51: 5914449 | G51: 5914464 | H51: 5914479 | I51: P | J51: 45 | K51: =IF(ISBLANK(J51),"",J51*(D51*$I$46)) -> 3595.104
A52: 5914479 | B52: M1429 | C52: Tábua de pinho de terceira - E = 2,5 cm - Caminhão carroceria com capacidade de 15 t - 188 kW | D52: 0.01011 | E52: tkm | F52: 5914449 | G52: 5914464 | H52: 5914479 | I52: P | J52: 45 | K52: =IF(ISBLANK(J52),"",J52*(D52*$I$46)) -> 11956.086
B54: PRINCIPAL: | C54: 2003373
B56: TIPO (P, RP ou LN) | C56: DMT ATÉ 50 KM NÃO DEVE SER PAGA | D56: DMT ACIMA DE 50 KM
B57: RP | C57: 0 | D57: 4
B59: SISTEMA DE CUSTOS REFERENCIAIS DE OBRAS - SICRO | I59: Quantitivo
B60: Custo Unitário de Referência | E60: =$C$8 -> 2024-04-01 | I60: (Coeficiente na composição principal) x (quantidade da principal no orçamento) | K60: m³
B61: 1107892 | C61: Concreto fck = 20 MPa - confecção em betoneira e lançamento manual - areia e brita comerciais | I61: =('MOMENTO DE TRANSPORTE - PRINC'!$D$37*VLOOKUP(C70,'RESUMO MODULO TOTAL'!D:R,7,FALSE)) -> 2016
B62: F - MOMENTO DE TRANSPORTE | D62: Quantidade | E62: Unidade | F62: DMT
F63: LN | G63: RP | H63: P | I63: TIPO (P, RP ou LN) | J63: DMT ESTIMADA (km) | K63: QUANTITATIVO TOTAL DE TRANSPORTE DE MATERIAL (tkm)
A64: =IF(I64="P",H64,IF(I64="RP",G64,IF(I64="LN",F64,""))) -> 5914464 | B64: M0030 | C64: Aditivo plastificante e retardador de pega para concreto e argamassa - Caminhão carroceria 15 t | D64: 0.00085 | E64: tkm | F64: 5914449 | G64: 5914464 | H64: 5914479 | I64: =$B$57 -> RP | J64: =$D$57 -> 4 | K64: =IF(ISBLANK(J64),"",J64*(D64*$I$61)) -> 6.8544
A65: =IF(I65="P",H65,IF(I65="RP",G65,IF(I65="LN",F65,""))) -> 5914374 | B65: M0082 | C65: Areia média lavada - Caminhão basculante 10 m³ | D65: 0.95001 | E65: tkm | F65: 5914359 | G65: 5914374 | H65: 5914389 | I65: =$B$57 -> RP | J65: =$D$57 -> 4 | K65: =IF(ISBLANK(J65),"",J65*(D65*$I$61)) -> 7660.88064
A66: 5914374 | B66: M0191 | C66: Brita 1 - Caminhão basculante 10 m³ | D66: 0.55131 | E66: tkm | F66: 5914359 | G66: 5914374 | H66: 5914389 | I66: RP | J66: 4 | K66: =IF(ISBLANK(J66),"",J66*(D66*$I$61)) -> 4445.76384
A67: 5914374 | B67: M0192 | C67: Brita 2 - Caminhão basculante 10 m³ | D67: 0.55131 | E67: tkm | F67: 5914359 | G67: 5914374 | H67: 5914389 | I67: RP | J67: 4 | K67: 4445.76384
A68: 5914464 | B68: M0424 | C68: Cimento Portland CP II - 32 - saco - Caminhão carroceria 15 t | D68: 0.28215 | E68: tkm | F68: 5914449 | G68: 5914464 | H68: 5914479 | I68: RP | J68: 4 | K68: 2275.2576
B70: PRINCIPAL: | C70: 2003373
B72: SISTEMA DE CUSTOS REFERENCIAIS DE OBRAS - SICRO | I72: Quantitivo
B73: Custo Unitário de Referência | E73: =$C$8 -> 2024-04-01 | H73: m² | I73: (Coeficiente na composição principal) x (quantidade da principal no orçamento) | K73: kg
B74: 2003842 | C74: Enchimento de junta de concreto com argamassa asfáltica de densidade 1.700 kg/m³ - espessura de 1 cm | I74: =('MOMENTO DE TRANSPORTE - PRINC'!$D$38*VLOOKUP(C79,'RESUMO MODULO TOTAL'!D:R,7,FALSE)) -> 2856
B75: F - MOMENTO DE TRANSPORTE | D75: Quantidade | E75: Unidade | F75: DMT
F76: LN | G76: RP | H76: P | I76: TIPO (P, RP ou LN) | J76: DMT ESTIMADA (km) | K76: QUANTITATIVO TOTAL DE TRANSPORTE DE MATERIAL (tkm)
A77: =IF(I77="P",H77,IF(I77="RP",G77,IF(I77="LN",F77,""))) -> 5914464 | B77: M2158 | C77: Argamassa asfáltica - Caminhão carroceria com capacidade de 15 t - 188 Kw | D77: 0.001 | E77: tkm | F77: 5914449 | G77: 5914464 | H77: 5914479 | I77: =$B$57 -> RP | J77: =$D$57 -> 4 | K77: =IF(ISBLANK(J77),"",J77*(D77*$I$74)) -> 11.424
B79: PRINCIPAL: | C79: 2003373
B81: SISTEMA DE CUSTOS REFERENCIAIS DE OBRAS - SICRO | I81: Quantitivo
B82: Custo Unitário de Referência | E82: =$C$8 -> 2024-04-01 | I82: (Coeficiente na composição principal) x (quantidade da principal no orçamento) | K82: m²
B83: 3103302 | C83: Fôrmas de tábuas de pinho para dispositivos de drenagem - utilização de 3 vezes - confecção, instalação e retirada | I83: =('MOMENTO DE TRANSPORTE - PRINC'!$D$39*VLOOKUP(C91,'RESUMO MODULO TOTAL'!D:R,7,FALSE)) -> 26280
B84: F - MOMENTO DE TRANSPORTE | D84: Quantidade | E84: Unidade | F84: DMT
F85: LN | G85: RP | H85: P | I85: TIPO (P, RP ou LN) | J85: DMT ESTIMADA (km) | K85: QUANTITATIVO TOTAL DE TRANSPORTE DE MATERIAL (tkm)
A86: =IF(I86="P",H86,IF(I86="RP",G86,IF(I86="LN",F86,""))) -> 5914464 | B86: M0560 | C86: Desmoldante para fôrmas de madeira - Caminhão carroceria com capacidade de 15 t - 188 Kw | D86: 2e-05 | E86: tkm | F86: 5914449 | G86: 5914464 | H86: 5914479 | I86: =$B$57 -> RP | J86: =$D$57 -> 4 | K86: =IF(ISBLANK(J86),"",J86*(D86*$I$83)) -> 2.1024
A87: =IF(I87="P",H87,IF(I87="RP",G87,IF(I87="LN",F87,""))) -> 5914464 | B87: M1205 | C87: Prego de ferro - Caminhão carroceria com capacidade de 15 t - 188 kW | D87: 2e-05 | E87: tkm | F87: 5914449 | G87: 5914464 | H87: 5914479 | I87: =$B$57 -> RP | J87: =$D$57 -> 4 | K87: =IF(ISBLANK(J87),"",J87*(D87*$I$83)) -> 2.1024
A88: 5914464 | B88: M0290 | C88: Tábua - E = 2,5 cm e L = 10 cm - Caminhão carroceria com capacidade de 15 t - 188 kW | D88: 0.00304 | E88: tkm | F88: 5914449 | G88: 5914464 | H88: 5914479 | I88: RP | J88: 4 | K88: 319.5648
A89: 5914464 | B89: M1429 | C89: Tábua de pinho de terceira - E = 2,5 cm - Caminhão carroceria com capacidade de 15 t - 188 kW | D89: 0.01011 | E89: tkm | F89: 5914449 | G89: 5914464 | H89: 5914479 | I89: RP | J89: 4 | K89: 1062.7632
B91: PRINCIPAL: | C91: 2003373
B92: TIPO (P, RP ou LN) | C92: DMT ATÉ 50 KM NÃO DEVE SER PAGA | D92: DMT ACIMA DE 50 KM
B93: LN | C93: 0 | D93: 1
B95: SISTEMA DE CUSTOS REFERENCIAIS DE OBRAS - SICRO | I95: Quantitivo
B96: Custo Unitário de Referência | E96: =$C$8 -> 2024-04-01 | I96: (Coeficiente na composição principal) x (quantidade da principal no orçamento) | K96: m³
B97: 1107892 | C97: Concreto fck = 20 MPa - confecção em betoneira e lançamento manual - areia e brita comerciais | I97: =('MOMENTO DE TRANSPORTE - PRINC'!$D$37*VLOOKUP(C106,'RESUMO MODULO TOTAL'!D:R,7,FALSE)) -> 2016
B98: F - MOMENTO DE TRANSPORTE | D98: Quantidade | E98: Unidade | F98: DMT
F99: LN | G99: RP | H99: P | I99: TIPO (P, RP ou LN) | J99: DMT ESTIMADA (km) | K99: QUANTITATIVO TOTAL DE TRANSPORTE DE MATERIAL (tkm)
A100: =IF(I100="P",H100,IF(I100="RP",G100,IF(I100="LN",F100,""))) -> 5914449 | B100: M0030 | C100: Aditivo plastificante e retardador de pega para concreto e argamassa - Caminhão carroceria 15 t | D100: 0.00085 | E100: tkm | F100: 5914449 | G100: 5914464 | H100: 5914479 | I100: =$B$93 -> LN | J100: =$D$93 -> 1 | K100: =IF(ISBLANK(J100),"",J100*(D100*$I$97)) -> 1.7136
A101: =IF(I101="P",H101,IF(I101="RP",G101,IF(I101="LN",F101,""))) -> 5914359 | B101: M0082 | C101: Areia média lavada - Caminhão basculante 10 m³ | D101: 0.95001 | E101: tkm | F101: 5914359 | G101: 5914374 | H101: 5914389 | I101: =$B$93 -> LN | J101: =$D$93 -> 1 | K101: =IF(ISBLANK(J101),"",J101*(D101*$I$97)) -> 1915.22016
A102: 5914359 | B102: M0191 | C102: Brita 1 - Caminhão basculante 10 m³ | D102: 0.55131 | E102: tkm | F102: 5914359 | G102: 5914374 | H102: 5914389 | I102: LN | J102: 1 | K102: 1111.44096
A103: 5914359 | B103: M0192 | C103: Brita 2 - Caminhão basculante 10 m³ | D103: 0.55131 | E103: tkm | F103: 5914359 | G103: 5914374 | H103: 5914389 | I103: LN | J103: 1 | K103: 1111.44096
A104: 5914449 | B104: M0424 | C104: Cimento Portland CP II - 32 - saco - Caminhão carroceria 15 t | D104: 0.28215 | E104: tkm | F104: 5914449 | G104: 5914464 | H104: 5914479 | I104: LN | J104: 1 | K104: 568.8144
B106: PRINCIPAL: | C106: 2003373
B108: SISTEMA DE CUSTOS REFERENCIAIS DE OBRAS - SICRO | I108: Quantitivo
B109: Custo Unitário de Referência | E109: =$C$8 -> 2024-04-01 | I109: (Coeficiente na composição principal) x (quantidade da principal no orçamento) | K109: kg
B110: 2003842 | C110: Enchimento de junta de concreto com argamassa asfáltica de densidade 1.700 kg/m³ - espessura de 1 cm | I110: =('MOMENTO DE TRANSPORTE - PRINC'!$D$38*VLOOKUP(C115,'RESUMO MODULO TOTAL'!D:R,7,FALSE)) -> 2856
B111: F - MOMENTO DE TRANSPORTE | D111: Quantidade | E111: Unidade | F111: DMT
F112: LN | G112: RP | H112: P | I112: TIPO (P, RP ou LN) | J112: DMT ESTIMADA (km) | K112: QUANTITATIVO TOTAL DE TRANSPORTE DE MATERIAL (tkm)
A113: =IF(I113="P",H113,IF(I113="RP",G113,IF(I113="LN",F113,""))) -> 5914449 | B113: M2158 | C113: Argamassa asfáltica - Caminhão carroceria com capacidade de 15 t - 188 Kw | D113: 0.001 | E113: tkm | F113: 5914449 | G113: 5914464 | H113: 5914479 | I113: =$B$93 -> LN | J113: =$D$93 -> 1 | K113: =IF(ISBLANK(J113),"",J113*(D113*$I$110)) -> 2.856
B115: PRINCIPAL: | C115: 2003373
B117: SISTEMA DE CUSTOS REFERENCIAIS DE OBRAS - SICRO | I117: Quantitivo
B118: Custo Unitário de Referência | E118: =$C$8 -> 2024-04-01 | I118: (Coeficiente na composição principal) x (quantidade da principal no orçamento) | K118: m²
B119: 3103302 | C119: Fôrmas de tábuas de pinho para dispositivos de drenagem - utilização de 3 vezes - confecção, instalação e retirada | I119: =('MOMENTO DE TRANSPORTE - PRINC'!$D$39*VLOOKUP(C127,'RESUMO MODULO TOTAL'!D:R,7,FALSE)) -> 26280
B120: F - MOMENTO DE TRANSPORTE | D120: Quantidade | E120: Unidade | F120: DMT
F121: LN | G121: RP | H121: P | I121: TIPO (P, RP ou LN) | J121: DMT ESTIMADA (km) | K121: QUANTITATIVO TOTAL DE TRANSPORTE DE MATERIAL (tkm)
A122: =IF(I122="P",H122,IF(I122="RP",G122,IF(I122="LN",F122,""))) -> 5914449 | B122: M0560 | C122: Desmoldante para fôrmas de madeira - Caminhão carroceria com capacidade de 15 t - 188 Kw | D122: 2e-05 | E122: tkm | F122: 5914449 | G122: 5914464 | H122: 5914479 | I122: =$B$93 -> LN | J122: =$D$93 -> 1 | K122: =IF(ISBLANK(J122),"",J122*(D122*$I$119)) -> 0.5256
A123: =IF(I123="P",H123,IF(I123="RP",G123,IF(I123="LN",F123,""))) -> 5914449 | B123: M1205 | C123: Prego de ferro - Caminhão carroceria com capacidade de 15 t - 188 kW | D123: 2e-05 | E123: tkm | F123: 5914449 | G123: 5914464 | H123: 5914479 | I123: LN | J123: 1 | K123: =IF(ISBLANK(J123),"",J123*(D123*$I$119)) -> 0.5256
A124: 5914449 | B124: M0290 | C124: Tábua - E = 2,5 cm e L = 10 cm - Caminhão carroceria com capacidade de 15 t - 188 kW | D124: 0.00304 | E124: tkm | F124: 5914449 | G124: 5914464 | H124: 5914479 | I124: LN | J124: 1 | K124: 79.8912
A125: 5914449 | B125: M1429 | C125: Tábua de pinho de terceira - E = 2,5 cm - Caminhão carroceria com capacidade de 15 t - 188 kW | D125: 0.01011 | E125: tkm | F125: 5914449 | G125: 5914464 | H125: 5914479 | I125: LN | J125: 1 | K125: 265.6908
B127: PRINCIPAL: | C127: 2003373
A128: =IF(I128="P",H128,IF(I128="RP",G128,IF(I128="LN",F128,""))) -> 
A130: =IF(I130="P",H130,IF(I130="RP",G130,IF(I130="LN",F130,""))) -> 

Sheet Mob
A4: ='RESUMO MODULO TOTAL'!B1 -> EXECUÇÃO DE SERVIÇOS DE IMPLANTAÇÃO DE PAVIMENTAÇÃO EM BLOCO DE CONCRETO INTERTRAVADO, EM VIAS DE MUNICÍPIOS DIVERSOS INSERIDOS NA ÁREA DE ATUAÇÃO DA CODEVASF, NO ESTADO SERGIPE
A5: MOBILIZAÇÃO/DESMOBILIZAÇÃO (MOB) | F5: Frentes de serviços | H5: ='MC MODULO'!G11 -> 12
F6: Distância da Capital ao Canteiro: | H6: 100
F8: Velocidade média de transporte (pavim.): | H8: 60
A10: Transporte dos equipamentos
A11: CODIGO | B11: EQUIPAMENTO | C11: VEÍCULO TRANSPORTADOR | D11: QTDE | E11: K | F11: FU | G11: CUSTO DO TRANSPORTE
G12: (R$/h) | H12: (R$)/km
A13: E9579 | B13: Caminhão basculante com capacidade de 10 m³ - 188 kW | C13: E9579 | D13: 7 | E13: =IF(A13=C13,1,2) -> 1 | F13: 1 | G13: 290.1292 | H13: =ROUND(((D13*E13*F13)/$H$8)*G13,2) -> 33.85 | I13: =(1/60)*D13*E13*F13 -> 0.1166666667
A14: E9041 | B14: Caminhão carroceria com guindauto com capacidade de 45 t.m - 188 kW | C14: E9041 | D14: 5 | E14: =IF(A14=C14,1,2) -> 1 | F14: 1 | G14: 383.6 | H14: =((D14*E14*F14)/$H$8)*G14 -> 31.96666667 | I14: =(1/60)*D14*E14*F14 -> 0.08333333333
A15: E9667 | B15: Caminhão basculante com capacidade de 14 m³ - 188 kW | C15: E9667 | D15: 2 | E15: 1 | F15: 1 | G15: 291.2046 | H15: 9.70682 | I15: 0.03333333333
A16: E9134 | B16: Miniônibus com capacidade para 30 passageiros - 111 kW | C16: E9134 | D16: 1 | E16: 1 | F16: 1 | G16: 218.8767 | H16: 3.647945 | I16: 0.01666666667
A17: E9571 | B17: Caminhão tanque com capacidade de 10.000 l - 188 kW | C17: E9571 | D17: 1 | E17: 1 | F17: 1 | G17: 315.7824 | H17: 5.26304 | I17: 0.01666666667
A18: E9524 | B18: Motoniveladora - 93 kW | C18: E9665 | D18: 1 | E18: 2 | F18: 1 | G18: 379.6978 | H18: 12.65659333 | I18: 0.03333333333
A19: E9515 | B19: Escavadeira hidráulica sobre esteiras com caçamba com capacidade de 1,56 m³ - 118 kW | C19: E9666 | D19: 1 | E19: 2 | F19: 1 | G19: 405.6257 | H19: 13.52085667 | I19: 0.03333333333
A20: E9592 | B20: Caminhão carroceria com capacidade de 15 t - 188 kW | C20: E9592 | D20: 1 | E20: 1 | F20: 1 | G20: 257.6591 | H20: 4.294318333 | I20: 0.01666666667
A21: E9762 | B21: Rolo compactador de pneus autopropelido de 27 t - 85 kW | C21: E9666 | D21: 1 | E21: 2 | F21: 0.5 | G21: 405.6257 | H21: 6.760428333 | I21: 0.01666666667
A22: E9093 | B22: Veículo leve - 53 kW (sem motorista) | C22: E9512 | D22: 3 | E22: 1 | F22: 1 | G22: 65.0794 | H22: 3.25397 | I22: 0.05
A23: E9685 | B23: Rolo compactador pé de carneiro vibratório autopropelido por pneus de 11,6 t - 82 kW | C23: E9666 | D23: 1 | E23: 2 | F23: 0.5 | G23: 405.6257 | H23: 6.760428333 | I23: 0.01666666667
A24: E9577 | B24: Trator agrícola sobre pneus - 77 kW | C24: E9665 | D24: 1 | E24: 2 | F24: 0.5 | G24: 379.6978 | H24: 6.328296667 | I24: 0.01666666667
A25: 00010777 | B25: CONTAINER 2,30 X 4,30 M, ALT. 2,50 M, PARA SANITARIO | C25: E9665 | D25: 1 | E25: 2 | F25: 0.5 | G25: 379.6978 | H25: 6.328296667 | I25: 0.01666666667
A26: E9540 | B26: Trator sobre esteiras com lâmina - 127 kW | C26: E9018 | D26: 1 | E26: 2 | F26: 0.5 | G26: 551.8547 | H26: 9.197578333 | I26: 0.01666666667
A27: 00010776 | B27: CONTAINER 2,30 X 6,00 M, ALT. 2,50 M, PARA ESCRITORIO | C27: E9665 | D27: 1 | E27: 2 | F27: 1 | G27: 379.6978 | H27: 12.65659333 | I27: 0.03333333333
A28: E9644 | B28: Caminhão demarcador de faixas com sistema de pintura a frio - 28 kW/115 kW | C28: E9644 | D28: 1 | E28: 1 | F28: 1 | G28: 362.9695 | H28: 6.049491667 | I28: 0.01666666667
A29: E9687 | B29: Caminhão carroceria com capacidade de 5 t - 115 kW | C29: E9687 | D29: 1 | E29: 1 | F29: 1 | G29: 144.8526 | H29: 2.41421 | I29: 0.01666666667
A30: E9076 | B30: Equipamento para pintura eletrostática com cabine dupla de 7,00 kW e estufa de 80.000 kCal | C30: E9665 | D30: 1 | E30: 2 | F30: 1 | G30: 379.6978 | H30: 12.65659333 | I30: 0.03333333333
A31: E9686 | B31: Caminhão carroceria com guindauto com capacidade de 20 t.m - 136 kW | C31: E9686 | D31: 1 | E31: 1 | F31: 1 | G31: 297.8215 | H31: 4.963691667 | I31: 0.01666666667
G32: TOTAL | H32: =TRUNC(SUM(H13:H31),2) -> 192.27
A35: CUSTO TOTAL MOBILIZAÇÃO E DESMOBILIZAÇÃO
A36: DESCRIÇÃO | B36: VALOR
A37: Custo Mobilização (km) | B37: =H32 -> 192.27
A38: BDI (%) | B38: =BDI!D14 -> 0.2308
A39: Custo Mobilização (R$/km) com BDI | B39: =TRUNC(B37+(B37*B38),2) -> 236.64
A40: Total de Frentes | B40: ='MC MODULO'!G11 -> 12
A41: Custo Mobilização (frentes x distancia) | B41: =B39*H6*B40 -> 283968

Sheet Canteiro
A4: CANTEIRO DE OBRAS PARA CONSTRUÇÃO RODOVIÁRIA
A5: Descrição dos serviços | B5: Tipo de container | C5: Unidade | D5: Quantidade | E5: Preço unitário (R$) | F5: Total (R$)
A6: Escritório e seção técnica
A7: LOCACAO DE CONTAINER 2,30 X 6,00 M, ALT. 2,50 M, PARA ESCRITORIO, SEM DIVISORIAS INTERNAS E SEM SANITARIO (NAO INCLUI MOBILIZACAO/DESMOBILIZACAO) | B7: 10776 | C7: und | D7: 1 | E7: 650.39 | F7: =TRUNC(D7*E7,2) -> 650.39
A8: Banheiro e vestiário
A9: LOCACAO DE CONTAINER 2,30 X 4,30 M, ALT. 2,50 M, PARA SANITARIO, COM 3 BACIAS, 4 CHUVEIROS, 1 LAVATORIO E 1 MICTORIO (NAO INCLUI MOBILIZACAO/DESMOBILIZACAO) | B9: 10777 | C9: und | D9: 1 | E9: 945.23 | F9: =TRUNC(D9*E9,2) -> 945.23
D10: TOTAL DO CANTEIRO | F10: =SUM(F7:F9) -> 1595.62
D11: DURAÇÃO (MESES) | E11: 2.5 | F11: =F10*E11 -> 3989.05
D12: BDI | F12: =BDI!D14 -> 0.2308
D13: TOTAL DO CANTEIRO (com BDI) | F13: =TRUNC(F11+(F11*F12),2) -> 4909.72

Sheet Adm Local
A4: parcela fixa da administração local (mão de obra)
A5: Código | B5: Discriminação | C5: Unidade | D5: Quantidade | F5: Custo Unitário (R$) | H5: Custo Total (R$)
B6: Mão de Obra
B7: Gerência Técnica
B8: Geral
A9: P9955 | B9: Engenheiro chefe | C9: mês | D9: 0.5 | F9: 30052.9329 | H9: =F9*D9 -> 15026.46645
A10: P9840 | B10: Encarregado geral | C10: mês | D10: 0.5 | F10: 9420.2612 | H10: =F10*D10 -> 4710.1306
A11: P9897 | B11: Técnico de meio ambiente | C11: mês | D11: 0 | F11: 0 | H11: =F11*D11 -> 0
A12: P9948 | B12: Motorista | C12: mês | D12: 0 | F12: 0 | H12: =F12*D12 -> 0
A13: P9878 | B13: Secretária | C13: mês | D13: 0 | F13: 0 | H13: =F13*D13 -> 0
F14: Subtotal do Item 1.1 | H14: =SUM(H9:I13) -> 19736.59705
B15: Auxiliar
A16: P9946 | B16: Engenheiro auxiliar | C16: mês | D16: 1 | F16: 21982.107 | H16: =D16*F16 -> 21982.107
A17: P9903 | B17: Auxiliar técnico | C17: mês | D17: 0 | H17: =D17*F17 -> 0
F18: Subtotal do Item 1.2 | H18: =SUM(H16:I17) -> 21982.107
B19: Gerência Administrativa
B20: Geral
A21: P9883 | B21: Chefe do setor administrativo | C21: mês | D21: 1 | F21: 7765.2768 | H21: =F21*D21 -> 7765.2768
A22: P9809 | B22: Encarregado administrativo | C22: mês | D22: 0 | H22: =F22*D22 -> 0
A23: P9896 | B23: Porteiro | C23: mês | D23: 0 | F23: 0 | H23: =F23*D23 -> 0
A24: P9827 | B24: Vigia | C24: mês | D24: 0 | F24: 0 | H24: =F24*D24 -> 0
A25: P9948 | B25: Motorista | C25: mês | D25: 0 | F25: 0 | H25: =F25*D25 -> 0
F26: Subtotal do Item 1.3 | H26: =SUM(H21:I25) -> 7765.2768
B27: Auxiliar
A28: P9806 | B28: Auxiliar administrativo | C28: mês | D28: 1 | F28: 4197.6864 | H28: =F28*D28 -> 4197.6864
A29: P9842 | B29: Faxineiro | C29: mês | D29: 0 | F29: 0 | H29: =F29*D29 -> 0
F30: Subtotal do Item 1.4 | H30: =SUM(H28:I29) -> 4197.6864
H31: Total da Mão de Obra da Parcela Fixa | I31: =H30+H26+H18+H14 -> 53681.66725
A33: parcela fixa da administração local (veículos)
A34: Código | B34: Discriminação | C34: Unidade | D34: Quantidade | E34: Utilização Produtiva | F34: Utilização Improdutiva | G34: Custo Horário Produtivo (R$) | H34: Custo Horário Improdutivo (R$) | I34: Custo Total (R$)
A35: 2 | B35: Veículos
B36: Gerência Técnica
A37: 2.1 | B37: Geral
A38: E9093 | B38: Veículo Leve 53 kw | C38: mês | D38: 1 | E38: 44 | F38: 176 | G38: 35.6391 | H38: 6.1081 | I38: =((E38*G38)+(F38*H38))*D38 -> 2643.146
A39: E9134 | B39: Miniônibus com capacidade para 30 passageiros | C39: mês | D39: 1 | E39: 44 | F39: 176 | G39: 218.8767 | H39: 69.4308 | I39: =((E39*G39)+(F39*H39))*D39 -> 21850.3956
H40: Subtotal do Item 2 | I40: =SUM(I38:I39) -> 24493.5416
A41: 2.2 | B41: Auxiliar
A42: E9093 | B42: Veículo Leve 53 kw | C42: mês | D42: 0 | E42: 44 | F42: 176 | I42: =((E42*G42)+(F42*H42))*D42 -> 0
H43: Subtotal do Item 2 | I43: =SUM(I42) -> 0
A44: 2.3 | B44: Gerência Administrativa
A45: E9093 | B45: Veículo Leve 53 kw | C45: mês | D45: 0 | E45: 44 | F45: 176 | I45: =((E45*G45)+(F45*H45))*D45 -> 0
H46: Subtotal do Item 2 | I46: =I45 -> 0
H47: Total dos Veículos da Parcela Fixa | I47: =I46+I43+I40 -> 24493.5416
A49: Composição de custo da equipe de produção de terraplenagem
A50: Código | B50: Discriminação | C50: Unidade | D50: Quantidade | F50: Custo Unitário (R$) | H50: Custo Total (R$)
B51: Equipe de Produção de Terraplenagem
A52: 3.1 | B52: Mão de Obra
A53: P9884 | B53: Encarregado de terraplenagem | C53: mês | D53: 0
F54: Subtotal do Item 3.1 | H54: =SUM(H53:H53) -> 0
A55: Código | B55: Discriminação | C55: Unidade | D55: Quantidade | E55: Utilização Produtiva | F55: Utilização Improdutiva | G55: Custo Horário Produtivo (R$) | H55: Custo Horário Improdutivo (R$) | I55: Custo Total (R$)
A56: 3.2 | B56: Veículos
A57: E9093 | B57: Veículo Leve 53 kw | C57: mês | D57: 0 | E57: 44 | F57: 176 | I57: =((E57*G57)+(F57*H57))*D57 -> 0
H58: Subtotal do Item 3.2 | I58: =SUM(I57:I57) -> 0
H59: Total da Equipe de Produção de Terraplenagem | I59: =I58+H54 -> 0
A61: Composição de custo da equipe de produção de pavimentação
A62: Código | B62: Discriminação | C62: Unidade | D62: Quantidade | F62: Custo Unitário (R$) | H62: Custo Total (R$)
B63: Equipe de Produção de Pavimentação
A64: 3.1 | B64: Mão de Obra
A65: P9893 | B65: Encarregado de pavimentação | C65: mês | D65: 1 | F65: 6737.8182 | H65: =F65*D65 -> 6737.8182
F66: Subtotal do Item 3.1 | H66: =SUM(H65:H65) -> 6737.8182
A67: Código | B67: Discriminação | C67: Unidade | D67: Quantidade | E67: Utilização Produtiva | F67: Utilização Improdutiva | G67: Custo Horário Produtivo (R$) | H67: Custo Horário Improdutivo (R$) | I67: Custo Total (R$)
A68: 3.2 | B68: Veículos
A69: E9093 | B69: Veículo Leve 53 kw | C69: mês | D69: 1 | E69: 44 | F69: 176 | G69: =G38 -> 35.6391 | H69: =H38 -> 6.1081 | I69: =((E69*G69)+(F69*H69))*D69 -> 2643.146
H70: Subtotal do Item 3.2 | I70: =SUM(I69:I69) -> 2643.146
H71: Total da Equipe de Produção de Pavimentação | I71: =I70+H66 -> 9380.9642
A73: Composição de custo da equipe de produção de drenagem
A74: Código | B74: Discriminação | C74: Unidade | D74: Quantidade | F74: Custo Unitário (R$) | H74: Custo Total (R$)
B75: Equipe de Produção de Drenagem
A76: 3.1 | B76: Mão de Obra
A77: P9893 | B77: Encarregado de produção | C77: mês | D77: 0
F78: Subtotal do Item 3.1 | H78: =SUM(H77:H77) -> 0
A79: Código | B79: Discriminação | C79: Unidade | D79: Quantidade | E79: Utilização Produtiva | F79: Utilização Improdutiva | G79: Custo Horário Produtivo (R$) | H79: Custo Horário Improdutivo (R$) | I79: Custo Total (R$)
A80: 3.2 | B80: Veículos
A81: E9093 | B81: Veículo Leve 53 kw | C81: mês | D81: 0 | E81: 44 | F81: 176 | I81: =((E81*G81)+(F81*H81))*D81 -> 0
H82: Subtotal do Item 3.2 | I82: =SUM(I81:I81) -> 0
H83: Total da Equipe de Produção de Pavimentação | I83: =I82+H78 -> 0
A85: Composição de custo da equipe de produção de sinalização
A86: Código | B86: Discriminação | C86: Unidade | D86: Quantidade | F86: Custo Unitário (R$) | H86: Custo Total (R$)
B87: Equipe de Produção de Sinalização
A88: 3.1 | B88: Mão de Obra
A89: P9893 | B89: Encarregado de produção | C89: mês | D89: 0
F90: Subtotal do Item 3.1 | H90: =SUM(H89:H89) -> 0
A91: Código | B91: Discriminação | C91: Unidade | D91: Quantidade | E91: Utilização Produtiva | F91: Utilização Improdutiva | G91: Custo Horário Produtivo (R$) | H91: Custo Horário Improdutivo (R$) | I91: Custo Total (R$)
A92: 3.2 | B92: Veículos
A93: E9093 | B93: Veículo Leve 53 kw | C93: mês | D93: 0 | E93: 44 | F93: 176 | I93: =((E93*G93)+(F93*H93))*D93 -> 0
H94: Subtotal do Item 3.2 | I94: =SUM(I93:I93) -> 0
H95: Total da Equipe de Produção de Pavimentação | I95: =I94+H90 -> 0
A97: Composição de custo da equipe topografia
A98: Código | B98: Discriminação | C98: Unidade | D98: Quantidade | F98: Custo Unitário (R$) | H98: Custo Total (R$)
B99: Equipe de Topografia
A100: 3.1 | B100: Mão de Obra
A101: P9949 | B101: Topográfo | C101: mês | D101: 1 | F101: 8451.7703 | H101: =F101*D101 -> 8451.7703
A102: P9950 | B102: Auxiliar de topografia | C102: mês | D102: 1 | F102: 5505.157 | H102: =F102*D102 -> 5505.157
F103: Subtotal do Item 3.1 | H103: =SUM(H101:I102) -> 13956.9273
A104: Código | B104: Discriminação | C104: Unidade | D104: Quantidade | E104: Utilização Produtiva | F104: Utilização Improdutiva | G104: Custo Horário Produtivo (R$) | H104: Custo Horário Improdutivo (R$) | I104: Custo Total (R$)
A105: 3.2 | B105: Veículos
A106: E9093 | B106: Veículo Leve 53 kw | C106: mês | D106: 1 | E106: 44 | F106: 176 | G106: =G38 -> 35.6391 | H106: =H38 -> 6.1081 | I106: =((E106*G106)+(F106*H106))*D106 -> 2643.146
H107: Subtotal do Item 3.2 | I107: =SUM(I106:I106) -> 2643.146
H108: Total da Equipe de Produção de Topografia | I108: =I107+H103 -> 16600.0733
A110: Composição de custo do setor de medicina e segurança do trabalho
A111: Código | B111: Discriminação | C111: Unidade | D111: Quantidade | F111: Custo Unitário (R$) | H111: Custo Total (R$)
A112: 4 | B112: Setor de Medicina e Segurança do Trabalho
A113: P9876 | B113: Técnico de segurança do trabalho | C113: mês | D113: 1 | F113: 7025.0759 | H113: =F113*D113 -> 7025.0759
A114: P9864 | B114: Engenheiro de segurança do trabalho | C114: mês | D114: 0 | H114: =F114*D114 -> 0
A115: P9851 | B115: Médico do trabalho | C115: mês | D115: 0 | H115: =F115*D115 -> 0
A116: P9951 | B116: Médico de câmara hiperbárica | C116: mês | D116: 0 | H116: =F116*D116 -> 0
F117: Subtotal do Item 4 | H117: =SUM(H113:I116) -> 7025.0759
A119: Parcela Variável - Composição de custo da equipe de frente de serviço
A120: Código | B120: Discriminação | C120: Unidade | D120: Quantidade | F120: Custo Unitário (R$) | H120: Custo Total (R$)
A121: 5 | B121: Equipe de Frente de Serviço | C121: equipexmês
A122: P9875 | B122: Encarregado de Turma | C122: mês | D122: 1 | F122: 5107.7036 | H122: =F122*D122 -> 5107.7036
A123: P9804 | B123: Apontador | C123: mês | D123: 0.5 | F123: 4419.627 | H123: =F123*D123 -> 2209.8135
F124: Subtotal do Item 5 | H124: =SUM(H122:I123) -> 7317.5171
A126: Parcela Variável - Composição de custo da equipe de frente de serviço (Terraplenagem) - Somente Compactação
A127: Código | B127: Discriminação | C127: Unidade | D127: Quantidade | F127: Produção Horária (und/h) | H127: Efs
A128: 5.1 | B128: Equipe de Frente de Serviço | C128: equipexmês
C129: mês | H129: =(D129)/(F129*182.49) -> 
F130: Total de Equipes para Terraplenagem | H130: =SUM(#REF!) -> 
A132: Parcela Variável - Composição de custo da acompanhamento das frentes de serviço de pavimentação
A133: Código | B133: Discriminação | C133: Unidade | D133: Quantidade | F133: Produção Horária (und/h) | H133: Efs
A134: 5.2 | B134: Equipe de Frente de Serviço | C134: equipe x mês
A135: 92404 ADAPTADA | B135: Execução de pavimento em piso intertravado, com bloco 16 faces de 22 x 11 cm, espessura 8 cm. af_10/2022 - exclusive fornecimento de bloquete | C135: ='RESUMO MODULO TOTAL'!I24 -> m² | D135: ='RESUMO MODULO TOTAL'!J24 -> 120000 | F135: =(1/0.2129)*5 -> 23.48520432 | H135: =(D135)/(F135*182.49) -> 27.99934243
A136: 4011233 | B136: Sub-base estabilizada granulometricamente com mistura solo brita (70% - 30%) na pista com material de jazida e brita comercial | C136: ='RESUMO MODULO TOTAL'!I28 -> m³ | D136: ='RESUMO MODULO TOTAL'!J28 -> 18000 | F136: 150.88 | H136: 0.6537350323
A137: 4011209 | B137: Regularização do subleito | C137: ='RESUMO MODULO TOTAL'!I29 -> m² | D137: ='RESUMO MODULO TOTAL'!J29 -> 120000 | F137: 1121.33 | H137: 0.5864199458
F138: Total de Equipes para Pavimentação | H138: =SUM(H135:I137) -> 29.23949741
A140: Parcela Variável - Composição de custo da acompanhamento das frentes de serviço de drenagem
A141: Código | B141: Discriminação | C141: Unidade | D141: Quantidade | F141: Efsdu | H141: Efs
A142: 5.3 | B142: Frentes de Serviço para Drenagem | C142: equipe x mês
A143: 2003373 | B143: Meio-fio de concreto - MFC 03 - areia e brita comerciais - fôrma de madeira | C143: m | D143: ='RESUMO MODULO TOTAL'!J36 -> 48000 | F143: 0.00021 | H143: =D143*F143 -> 10.08
F144: Total de Equipes para Drenagem | H144: =H143 -> 10.08
A146: Parcela Variável - Composição de custo da acompanhamento das frentes de serviço de sinalização
A147: Código | B147: Discriminação | C147: Unidade | D147: Quantidade | F147: Produção Horária (und/h) | H147: Efs
A148: 5.4 | B148: Frentes de Serviço para Sinalização | C148: equipe x mês
A149: 5213440 | B149: Placa de regulamentação em aço D = 0,60 m - película retrorrefletiva tipo I + SI - fornecimento e implantação | C149: ='RESUMO MODULO TOTAL'!I31 -> und | D149: ='RESUMO MODULO TOTAL'!J31 -> 72 | F149: 3 | H149: =0.2*((D149)/(F149*182.49)) -> 0.02630281111
A150: 5213464 | B150: Placa de advertência em aço, lado de 0,60 m - película retrorrefletiva tipo I + SI - fornecimento e implantação | C150: ='RESUMO MODULO TOTAL'!I32 -> und | D150: ='RESUMO MODULO TOTAL'!J32 -> 72 | F150: 3 | H150: =0.2*((D150)/(F150*182.49)) -> 0.02630281111
A151: 5213400 | B151: Pintura de faixa com tinta acrílica - espessura de 0,4 mm | C151: ='RESUMO MODULO TOTAL'!I34 -> m² | D151: ='RESUMO MODULO TOTAL'!J34 -> 4800 | F151: 177.07 | H151: =0.2*((D151)/(F151*182.49)) -> 0.02970894122
F152: Total de Equipes para Sinalização | H152: =SUM(H149:I151) -> 0.08231456345
A154: 3. PARCELA VARIÁVEL - EQUIPE DE CONTROLE TECNOLÓGICO
A155: LABORATÓRIO DE SOLOS
A156: Item | B156: Discriminação | F156: Unidade | G156: Quantidade | H156: Custo Unitário (R$) | I156: Custo Total (R$)
B157: Laboratório de Solos (equipe x mês)
B158: Mão de Obra
A159: P9858 | B159: Laboratorista | F159: func./mês | G159: 1 | H159: 5576.2888 | I159: =TRUNC(G159*H159,2) -> 5576.28
A160: P9833 | B160: Auxiliar de laboratório | F160: func./mês | G160: 1 | H160: 4221.2468 | I160: =TRUNC(G160*H160,2) -> 4221.24
H161: Subtotal do Item | I161: =SUM(I159:I160) -> 9797.52
A162: Item | B162: Discriminação | C162: Und | D162: Quant | E162: Utilização Produtiva | F162: Utilização Improdutiva | G162: Horário Produtivo (R$) | H162: Horário Improdutivo (R$) | I162: Total (R$)
B163: Equipe de Controle Tecnológico
B164: Veículos
A165: E9125 | B165: Van furgão a diesel - 93 kW | C165: veic./mês | D165: 0.5 | E165: 44 | F165: 176 | G165: 82.7321 | H165: 47.0671 | I165: =D165*((E165*G165)+(F165*H165)) -> 5962.011
H166: Subtotal do Item | I166: =SUM(I165:I165) -> 5962.011
H167: Total da Equipe do Laboratório de Solos | I167: =I161+I166 -> 15759.531
A169: 3. PARCELA VARIÁVEL - EQUIPE DE CONTROLE TECNOLÓGICO
A170: LABORATÓRIO DE CONCRETO
A171: Item | B171: Discriminação | F171: Unidade | G171: Quantidade | H171: Custo Unitário (R$) | I171: Custo Total (R$)
B172: Laboratório de Solos (equipe x mês)
B173: Mão de Obra
A174: P9858 | B174: Laboratorista | F174: func./mês | G174: 1 | H174: 7143.1041 | I174: =TRUNC(G174*H174,2) -> 7143.1
A175: P9833 | B175: Auxiliar de laboratório | F175: func./mês | G175: 1 | H175: 5472.4477 | I175: =TRUNC(G175*H175,2) -> 5472.44
H176: Subtotal do Item | I176: =SUM(I174:I175) -> 12615.54
A177: Item | B177: Discriminação | C177: Und | D177: Quant | E177: Utilização Produtiva | F177: Utilização Improdutiva | G177: Horário Produtivo (R$) | H177: Horário Improdutivo (R$) | I177: Total (R$)
B178: Equipe de Controle Tecnológico
B179: Veículos
A180: E9125 | B180: Van furgão a diesel - 93 kW | C180: veic./mês | D180: 0.5 | E180: 44 | F180: 176 | G180: 82.7321 | H180: 47.0671 | I180: =D180*((E180*G180)+(F180*H180)) -> 5962.011
H181: Subtotal do Item | I181: =SUM(I180:I180) -> 5962.011
H182: Total da Equipe do Laboratório de Concreto | I182: =I176+I181 -> 18577.551
A184: Equipes de laboratório de solos para pavimentação
A185: Item | B185: Discriminação | F185: Und | G185: Quant | H185: QE | I185: Els
A186: ='RESUMO MODULO TOTAL'!D28 -> 4011233 | B186: Sub-base estabilizada granulometricamente com mistura solo brita (70% - 30%) na pista com material de jazida e brita comercial | F186: m³ | G186: ='RESUMO MODULO TOTAL'!J28 -> 18000 | H186: 21900 | I186: =G186/H186 -> 0.8219178082
H187: Total de equipes de Laboratório de Solos para Pavimentação | I187: =I186 -> 0.8219178082
A189: Equipes de laboratório de Concreto
A190: Item | B190: Discriminação | F190: Und | G190: Quant | H190: QE | I190: Ela
A191: ='RESUMO MODULO TOTAL'!D23 -> 36170 | B191: BLOQUETE/PISO INTERTRAVADO DE CONCRETO - MODELO ONDA/16 FACES/RETANGULAR/T IJOLINHO/PAVER/HOLANDES/PARALELEPIPEDO, *22 CM X 11* CM, E = 8 CM, RESISTENCIA DE 35 MPA (NBR 9781), COR NATURAL | F191: m³ | G191: ='RESUMO MODULO TOTAL'!J23*0.08 -> 9638.4 | H191: 1700 | I191: =G191/H191 -> 5.669647059
H192: Total de equipes de Laboratório de Concreto | I192: =SUM(I191:I191) -> 5.669647059
A194: manutenção do canteiro de obras e acampamentos
A195: Código | B195: Discriminação | C195: Unidade | D195: Quantidade | F195: Custo Unitário (R$) | H195: Custo Total (R$)
B196: Manutenção do Canteiro de Obras e Acampamentos
A197: 6.1 | B197: Mão de Obra
A198: P9952 | B198: Pedreiro | C198: mês | D198: 0 | H198: =F198*D198 -> 0
A199: P9954 | B199: Servente | C199: mês | D199: 0 | H199: =F199*D199 -> 0
A200: P9953 | B200: Eletricista | C200: mês | D200: 0 | H200: =F200*D200 -> 0
F201: Subtotal do Item 6.1 | H201: =SUM(H198:I200) -> 0
A203: Código | B203: Discriminação | C203: Unidade | D203: Quantidade | F203: Custo Produtivo (R$) | H203: Custo Total (R$)
A204: 6.2 | B204: Equipamentos
B205: Caminhão guindauto de 6 toneladas | C205: h/mês | D205: 0 | H205: =F205*D205 -> 0
B206: Caminhão tanque de 8.000 litros | C206: h/mês | D206: 0 | H206: =F206*D206 -> 0
A207: E9524 | B207: Motoniveladora | C207: h/mês | D207: 0 | H207: =F207*D207 -> 0
F208: Subtotal do Item 6.2 | H208: =SUM(H205:I207) -> 0
G209: Total da Manutenção do Canteiro de Obras e Acampamentos | H209: =H208+H201 -> 0
A213: Resumo das parcelas de administração local
A214: Código | B214: Discriminação | C214: Unidade | D214: Quantidade | F214: Custo Unitário (R$) | H214: Custo Total (R$)
B215: Parcela Fixa
B216: Mão de Obra | C216: mês | D216: 7 | F216: =H14+H18+H26+H30 -> 53681.66725 | H216: =F216*D216 -> 375771.6707
B217: Veículos | C217: mês | D217: 7 | F217: =I47 -> 24493.5416 | H217: =F217*D217 -> 171454.7912
F218: Subtotal do Item 1 | H218: =SUM(H216:I217) -> 547226.462
B219: Parcela Vinculada
B220: Equipe de produção de terraplenagem | C220: mês | D220: 2 | F220: =I59 -> 0 | H220: =F220*D220 -> 0
B221: Equipe de produção de pavimentação | C221: mês | D221: 6 | F221: =I71 -> 9380.9642 | H221: 56285.7852
B222: Equipe de produção de drenagem | C222: mês | F222: =I83 -> 0 | H222: 0
B223: Equipe de produção de sinalização | C223: mês | F223: =I95 -> 0 | H223: 0
B224: Equipe de topografia | C224: mês | D224: 7 | F224: =I108 -> 16600.0733 | H224: 116200.5131
... 19 more rows

Sheet Projeto Executivo
A4: COMPOSIÇAO DE PREÇO - PROJETO EXECUTIVO
A6: DISCRIMINAÇÃO | F6: Pr. Unit. | G6: Pr. Total
A8: A· EOUIPE TECNICA | G8: =G9+G12 -> 16742.83875
B9: A. 1 - Pessoal de Nível Superior | C9: Unidade | D9: Quantitativo | E9: SICRO e Rel.Custos Gerais | G9: =G10+G11 -> 13881.4125
B10: Engenheiro | C10: mês | D10: 0.5 | E10: P9812 | F10: 23542.54 | G10: =F10*D10 -> 11771.27
B11: Topógrafo | C11: mês | D11: 0.25 | E11: P9949 | F11: 8440.57 | G11: =F11*D11 -> 2110.1425
B12: A.2 - Pessoal de Nível Técnico e Aux. | G12: =G13+G14 -> 2861.42625
B13: Auxiliar de topógrafo | C13: mês | D13: 0.125 | E13: P9950 | F13: 5502.25 | G13: =F13*D13 -> 687.78125
B14: Auxiliar Técnico/Assistente de Engenharia | C14: mês | D14: 0.5 | E14: P9903 | F14: 4347.29 | G14: =F14*D14 -> 2173.645
A15: B - ENCARGOS SOCIAIS | G15: =G16 -> 0
B16: =CONCATENATE("Taxas ",'ENC. SOCIAIS'!E48,"%") -> Taxas 112,54% | C16: JÁ INCLUSAS EM "A"
A17: C - DESPESAS GERAIS | G17: =G18+G20+G19 -> 13549.93516
B18: C.1 - MATERIAIS DE CONSUMO | C18: Estimativa % como referência de equipe técnica com encargos sociais | D18: 0.03 | F18: =G8 -> 16742.83875 | G18: =F18*D18 -> 502.2851625
B19: C.2 - VEÍCULOS (Veículo leve picape 4 x 4 com capacidade de 1,10 t - 147 kW) | C19: h | D19: 110 | E19: E9684 | F19: 116.08 | G19: =F19*D19 -> 12768.8
B20: C.3 - Estação total eletrônica com alcance máximo de 3.000 m | C20: h | D20: 55 | E20: E9553 | F20: 5.07 | G20: =F20*D20 -> 278.85
A21: D - ENSAIOS | G21: =SUM(G22:G24) -> 2978.42125
B22: Laboratorista | C22: mês | D22: =1/4 -> 0.25 | E22: P9858 | F22: 7140.9 | G22: =F22*D22 -> 1785.225
B23: Auxiliar de Laboratório | C23: mês | D23: =1/8 -> 0.125 | E23: P9833 | F23: 5472.32 | G23: =F23*D23 -> 684.04
B24: Laboratório de solos | C24: mês | D24: =1/8 -> 0.125 | E24: B8957 | F24: 4073.25 | G24: =F24*D24 -> 509.15625
A25: I - SOMA (A+B+C+D) | G25: =G8+G15+G17+G21 -> 33271.19516
A26: BDI = | D26: =BDI!D14 -> 0.2308 | G26: =D26*G25 -> 7678.991844
A27: TOTAL | G27: =G25+G26 -> 40950.18701
F28: Produtividade da equipe (m²) | G28: 14000
F29: Custo por m² (sem BDI): | G29: =TRUNC(G25/$G$28,2) -> 2.37
F30: Preço por m² (com BDI): | G30: =TRUNC(G27/$G$28,2) -> 2.92

Sheet CPUs
C1: Composições Analíticas com Preço Unitário | E1: Bancos | G1: B.D.I. | I1: Encargos Sociais
C2: ITEM 2 - INTERTRAVADO | E2: SINAPI - 07/2024 - Sergipe SICRO3 - 04/2024 - Sergipe ORSE - 06/2024 - Sergipe | G2: 23,08% | I2: Não Desonerado: embutido nos preços unitário dos insumos de mão de obra, de acordo com as bases.
A3: Composições Analíticas com Preço Unitário
A4: Composições Principais
A7: 4 | B7: Código | C7: Banco | D7: Descrição | E7: Tipo | G7: Und | H7: Quant. | I7: Valor Unit | J7: Total
A8: Composição | B8: 103689 | C8: SINAPI | D8: FORNECIMENTO E INSTALAÇÃO DE PLACA DE OBRA COM CHAPA GALVANIZADA E ESTRUTURA DE MADEIRA. AF_03/2022_PS | E8: PAVI - PAVIMENTAÇÃO | G8: m² | H8: 1 | I8: 348.92 | J8: 348.92
A9: Composição Auxiliar | B9: 102234 | C9: SINAPI | D9: PINTURA IMUNIZANTE PARA MADEIRA, 2 DEMÃOS. AF_01/2021 | E9: PINT - PINTURAS | G9: m² | H9: 0.5 | I9: 25.92 | J9: 12.96
A10: Composição Auxiliar | B10: 88262 | C10: SINAPI | D10: CARPINTEIRO DE FORMAS COM ENCARGOS COMPLEMENTARES | E10: SEDI - SERVIÇOS DIVERSOS | G10: H | H10: 0.3729 | I10: 25.8 | J10: 9.62
A11: Composição Auxiliar | B11: 88316 | C11: SINAPI | D11: SERVENTE COM ENCARGOS COMPLEMENTARES | E11: SEDI - SERVIÇOS DIVERSOS | G11: H | H11: 1.1186 | I11: 20.42 | J11: 22.84
A12: Insumo | B12: 00004509 | C12: SINAPI | D12: SARRAFO *2,5 X 10* CM EM PINUS, MISTA OU EQUIVALENTE DA REGIAO - BRUTA | E12: Material | G12: M | H12: 3.2083 | I12: 5.58 | J12: 17.9
A13: Insumo | B13: 00004813 | C13: SINAPI | D13: PLACA DE OBRA (PARA CONSTRUCAO CIVIL) EM CHAPA GALVANIZADA *N. 22*, ADESIVADA, DE *2,4 X 1,2* M (SEM POSTES PARA FIXACAO) | E13: Material | G13: m² | H13: 1 | I13: 285 | J13: 285
A14: Insumo | B14: 00005065 | C14: SINAPI | D14: PREGO DE ACO POLIDO COM CABECA 10 X 10 (7/8 X 17) | E14: Material | G14: KG | H14: 0.0113 | I14: 32.89 | J14: 0.37
A15: Insumo | B15: 00005069 | C15: SINAPI | D15: PREGO DE ACO POLIDO COM CABECA 17 X 27 (2 1/2 X 11) | E15: Material | G15: KG | H15: 0.0132 | I15: 17.62 | J15: 0.23
A20: 6 | B20: Código | C20: Banco | D20: Descrição | E20: Tipo | G20: Und | H20: Quant. | I20: Valor Unit | J20: Total
A21: Composição | B21: 5502114 | C21: SICRO3 | D21: Escavação, carga e transporte de material de 1ª categoria - DMT de 1.000 a 1.200 m - caminho de serviço em leito natural - com escavadeira e caminhão basculante de 14 m³ | G21: m³ | H21: 1 | I21: 7.61 | J21: 7.61
A22: A | B22: Código | C22: Banco | D22: Equipamentos | E22: Quantidade | F22: Utilização | H22: Custo Operacional | J22: Custo Horário
F23: Operativa | G23: Improdutiva | H23: Operativa | I23: Improdutiva
A24: Insumo | B24: E9667 | C24: SICRO3 | D24: Caminhão basculante com capacidade de 14 m³ - 188 kW | E24: 5 | F24: 0.96 | G24: 0.04 | H24: 291.2046 | I24: 84.7469 | J24: 1414.7315
A25: Insumo | B25: E9515 | C25: SICRO3 | D25: Escavadeira hidráulica sobre esteiras com caçamba com capacidade de 1,56 m³ - 118 kW | E25: 1 | F25: 1 | G25: 0 | H25: 278.9546 | I25: 124.606 | J25: 278.9546
F26: Custo Horário de Equipamentos => | J26: 1693.6861
A27: B | B27: Código | C27: Banco | D27: Mão de Obra | E27: Quantidade | F27: Salário Hora | J27: Custo Horário
A28: Insumo | B28: P9824 | C28: SICRO3 | D28: Servente | E28: 1 | I28: 20.6527 | J28: 20.6527
F29: Custo Horário da Mão de Obra => | J29: 20.6527
F30: Adc.M.O. - Ferramentas (0,0%) => | J30: 0
F31: Custo Horário de Execução => | J31: 1714.3388
F32: Fator de Influencia da Chuva - FIC => | J32: 0.0214
F33: Custo do FIC => | J33: 0.1597
F34: Produção de Equipe => | J34: 230.19
F35: Custo Unitário de Execução => | J35: 7.4475
A39: 7 | B39: Código | C39: Banco | D39: Descrição | E39: Tipo | G39: Und | H39: Quant. | I39: Valor Unit | J39: Total
A40: Composição | B40: 4413942 | C40: SICRO3 | D40: Espalhamento de material em bota-fora | G40: m³ | H40: 1 | I40: 1.93 | J40: 1.93
A41: A | B41: Código | C41: Banco | D41: Equipamentos | E41: Quantidade | F41: Utilização | H41: Custo Operacional | J41: Custo Horário
F42: Operativa | G42: Improdutiva | H42: Operativa | I42: Improdutiva
A43: Insumo | B43: E9540 | C43: SICRO3 | D43: Trator sobre esteiras com lâmina - 127 kW | E43: 1 | F43: 1 | G43: 0 | H43: 312.8933 | I43: 125.7383 | J43: 312.8933
F44: Custo Horário de Equipamentos => | J44: 312.8933
A45: B | B45: Código | C45: Banco | D45: Mão de Obra | E45: Quantidade | F45: Salário Hora | J45: Custo Horário
A46: Insumo | B46: P9824 | C46: SICRO3 | D46: Servente | E46: 1 | I46: 20.6527 | J46: 20.6527
F47: Custo Horário da Mão de Obra => | J47: 20.6527
F48: Adc.M.O. - Ferramentas (0,0%) => | J48: 0
F49: Custo Horário de Execução => | J49: 333.546
F50: Fator de Influencia da Chuva - FIC => | J50: 0.0214
F51: Custo do FIC => | J51: 0.0404
F52: Produção de Equipe => | J52: 176.81
F53: Custo Unitário de Execução => | J53: 1.8865
A57: 9 | B57: Código | C57: Banco | D57: Descrição | E57: Tipo | G57: Und | H57: Quant. | I57: Valor Unit | J57: Total
A58: Composição | B58: CODEVASF 325 | C58: Próprio | D58: EXECUÇÃO DE PAVIMENTO EM PISO INTERTRAVADO, COM BLOCO 16 FACES DE 22 X 11 CM, ESPESSURA 8 CM. EXCLUSIVE FORNECIMENTO DE BLOQUETE. ADAPTADA DO SINAPI (92404) | E58: PAVI - PAVIMENTAÇÃO | G58: m² | H58: 1 | I58: 17.46 | J58: 17.46
A59: Composição Auxiliar | B59: 88260 | C59: SINAPI | D59: CALCETEIRO COM ENCARGOS COMPLEMENTARES | E59: SEDI - SERVIÇOS DIVERSOS | G59: H | H59: 0.2129 | I59: 25.94 | J59: 5.52
A60: Composição Auxiliar | B60: 88316 | C60: SINAPI | D60: SERVENTE COM ENCARGOS COMPLEMENTARES | E60: SEDI - SERVIÇOS DIVERSOS | G60: H | H60: 0.2129 | I60: 20.42 | J60: 4.34
A61: Composição Auxiliar | B61: 91277 | C61: SINAPI | D61: PLACA VIBRATÓRIA REVERSÍVEL COM MOTOR 4 TEMPOS A GASOLINA, FORÇA CENTRÍFUGA DE 25 KN (2500 KGF), POTÊNCIA 5,5 CV - CHP DIURNO. AF_08/2015 | E61: CHOR - CUSTOS HORÁRIOS DE MÁQUINAS E EQUIPAMENTOS | G61: CHP | H61: 0.0055 | I61: 10.48 | J61: 0.05
A62: Composição Auxiliar | B62: 91278 | C62: SINAPI | D62: PLACA VIBRATÓRIA REVERSÍVEL COM MOTOR 4 TEMPOS A GASOLINA, FORÇA CENTRÍFUGA DE 25 KN (2500 KGF), POTÊNCIA 5,5 CV - CHI DIURNO. AF_08/2015 | E62: CHOR - CUSTOS HORÁRIOS DE MÁQUINAS E EQUIPAMENTOS | G62: CHI | H62: 0.101 | I62: 0.71 | J62: 0.07
A63: Composição Auxiliar | B63: 91283 | C63: SINAPI | D63: CORTADORA DE PISO COM MOTOR 4 TEMPOS A GASOLINA, POTÊNCIA DE 13 HP, COM DISCO DE CORTE DIAMANTADO SEGMENTADO PARA CONCRETO, DIÂMETRO DE 350 MM, FURO DE 1" (14 X 1") - CHP DIURNO. AF_08/2015 | E63: CHOR - CUSTOS HORÁRIOS DE MÁQUINAS E EQUIPAMENTOS | G63: CHP | H63: 0.0038 | I63: 11.28 | J63: 0.04
A64: Composição Auxiliar | B64: 91285 | C64: SINAPI | D64: CORTADORA DE PISO COM MOTOR 4 TEMPOS A GASOLINA, POTÊNCIA DE 13 HP, COM DISCO DE CORTE DIAMANTADO SEGMENTADO PARA CONCRETO, DIÂMETRO DE 350 MM, FURO DE 1" (14 X 1") - CHI DIURNO. AF_08/2015 | E64: CHOR - CUSTOS HORÁRIOS DE MÁQUINAS E EQUIPAMENTOS | G64: CHI | H64: 0.1027 | I64: 1.06 | J64: 0.1
A65: Insumo | B65: 00000370 | C65: SINAPI | D65: AREIA MEDIA - POSTO JAZIDA/FORNECEDOR (RETIRADO NA JAZIDA, SEM TRANSPORTE) | E65: Material | G65: m³ | H65: 0.0568 | I65: 110 | J65: 6.24
A66: Insumo | B66: 00004741 | C66: SINAPI | D66: PO DE PEDRA (POSTO PEDREIRA/FORNECEDOR, SEM FRETE) | E66: Material | G66: m³ | H66: 0.0098 | I66: 113.08 | J66: 1.1
A70: 10 | B70: Código | C70: Banco | D70: Descrição | E70: Tipo | G70: Und | H70: Quant. | I70: Valor Unit | J70: Total
A71: Composição | B71: 5915014 | C71: SICRO3 | D71: Transporte com caminhão carroceria com capacidade de 11 t e com guindauto de 45 t.m - rodovia pavimentada | G71: tkm | H71: 1 | I71: 1.36 | J71: 1.36
A72: A | B72: Código | C72: Banco | D72: Equipamentos | E72: Quantidade | F72: Utilização | H72: Custo Operacional | J72: Custo Horário
F73: Operativa | G73: Improdutiva | H73: Operativa | I73: Improdutiva
A74: Insumo | B74: E9041 | C74: SICRO3 | D74: Caminhão carroceria com guindauto com capacidade de 45 t.m - 188 kW | E74: 1 | F74: 1 | G74: 0 | H74: 383.602 | I74: 130.4798 | J74: 383.602
F75: Custo Horário de Equipamentos => | J75: 383.602
F76: Custo Horário de Execução => | J76: 383.602
F77: Fator de Influencia da Chuva - FIC => | J77: 0
F78: Custo do FIC => | J78: 0
F79: Produção de Equipe => | J79: 281.87
F80: Custo Unitário de Execução => | J80: 1.3609
A84: 11 | B84: Código | C84: Banco | D84: Descrição | E84: Tipo | G84: Und | H84: Quant. | I84: Valor Unit | J84: Total
A85: Composição | B85: 5915321 | C85: SICRO3 | D85: Transporte com caminhão basculante de 14 m³ - rodovia pavimentada | G85: tkm | H85: 1 | I85: 0.62 | J85: 0.62
A86: A | B86: Código | C86: Banco | D86: Equipamentos | E86: Quantidade | F86: Utilização | H86: Custo Operacional | J86: Custo Horário
F87: Operativa | G87: Improdutiva | H87: Operativa | I87: Improdutiva
A88: Insumo | B88: E9667 | C88: SICRO3 | D88: Caminhão basculante com capacidade de 14 m³ - 188 kW | E88: 1 | F88: 1 | G88: 0 | H88: 291.2046 | I88: 84.7469 | J88: 291.2046
F89: Custo Horário de Equipamentos => | J89: 291.2046
F90: Custo Horário de Execução => | J90: 291.2046
F91: Fator de Influencia da Chuva - FIC => | J91: 0
F92: Custo do FIC => | J92: 0
F93: Produção de Equipe => | J93: 470.61
F94: Custo Unitário de Execução => | J94: 0.6188
A98: 12 | B98: Código | C98: Banco | D98: Descrição | E98: Tipo | G98: Und | H98: Quant. | I98: Valor Unit | J98: Total
A99: Composição | B99: 5915321 | C99: SICRO3 | D99: Transporte com caminhão basculante de 14 m³ - rodovia pavimentada | G99: tkm | H99: 1 | I99: 0.62 | J99: 0.62
A100: A | B100: Código | C100: Banco | D100: Equipamentos | E100: Quantidade | F100: Utilização | H100: Custo Operacional | J100: Custo Horário
F101: Operativa | G101: Improdutiva | H101: Operativa | I101: Improdutiva
A102: Insumo | B102: E9667 | C102: SICRO3 | D102: Caminhão basculante com capacidade de 14 m³ - 188 kW | E102: 1 | F102: 1 | G102: 0 | H102: 291.2046 | I102: 84.7469 | J102: 291.2046
F103: Custo Horário de Equipamentos => | J103: 291.2046
F104: Custo Horário de Execução => | J104: 291.2046
F105: Fator de Influencia da Chuva - FIC => | J105: 0
F106: Custo do FIC => | J106: 0
F107: Produção de Equipe => | J107: 470.61
F108: Custo Unitário de Execução => | J108: 0.6188
A112: 13 | B112: Código | C112: Banco | D112: Descrição | E112: Tipo | G112: Und | H112: Quant. | I112: Valor Unit | J112: Total
A113: Composição | B113: 4011233 | C113: SICRO3 | D113: Sub-base estabilizada granulometricamente com mistura solo brita (70% - 30%) na pista com material de jazida e brita comercial | G113: m³ | H113: 1 | I113: 73.41 | J113: 73.41
A114: A | B114: Código | C114: Banco | D114: Equipamentos | E114: Quantidade | F114: Utilização | H114: Custo Operacional | J114: Custo Horário
F115: Operativa | G115: Improdutiva | H115: Operativa | I115: Improdutiva
A116: Insumo | B116: E9571 | C116: SICRO3 | D116: Caminhão tanque com capacidade de 10.000 l - 188 kW | E116: 1 | F116: 0.83 | G116: 0.17 | H116: 315.7824 | I116: 81.2249 | J116: 275.9076
A117: Insumo | B117: E9518 | C117: SICRO3 | D117: Grade de 24 discos rebocável de D = 60 cm (24”) | E117: 1 | F117: 0.62 | G117: 0.38 | H117: 4.8604 | I117: 3.3847 | J117: 4.2996
A118: Insumo | B118: E9524 | C118: SICRO3 | D118: Motoniveladora - 93 kW | E118: 1 | F118: 1 | G118: 0 | H118: 280.1411 | I118: 121.0896 | J118: 280.1411
A119: Insumo | B119: E9762 | C119: SICRO3 | D119: Rolo compactador de pneus autopropelido de 27 t - 85 kW | E119: 1 | F119: 0.65 | G119: 0.35 | H119: 248.3853 | I119: 120.0527 | J119: 203.4689
A120: Insumo | B120: E9685 | C120: SICRO3 | D120: Rolo compactador pé de carneiro vibratório autopropelido por pneus de 11,6 t - 82 kW | E120: 1 | F120: 0.67 | G120: 0.33 | H120: 212.4712 | I120: 93.9933 | J120: 173.3735
A121: Insumo | B121: E9577 | C121: SICRO3 | D121: Trator agrícola sobre pneus - 77 kW | E121: 1 | F121: 0.62 | G121: 0.38 | H121: 140.8575 | I121: 50.4418 | J121: 106.4995
F122: Custo Horário de Equipamentos => | J122: 1043.6902
A123: B | B123: Código | C123: Banco | D123: Mão de Obra | E123: Quantidade | F123: Salário Hora | J123: Custo Horário
A124: Insumo | B124: P9824 | C124: SICRO3 | D124: Servente | E124: 1 | I124: 20.6527 | J124: 20.6527
F125: Custo Horário da Mão de Obra => | J125: 20.6527
F126: Adc.M.O. - Ferramentas (0,0%) => | J126: 0
F127: Custo Horário de Execução => | J127: 1064.3429
F128: Fator de Influencia da Chuva - FIC => | J128: 0.0214
F129: Custo do FIC => | J129: 0.1512
F130: Produção de Equipe => | J130: 150.88
F131: Custo Unitário de Execução => | J131: 7.0542
A132: C | B132: Banco | C132: Código | D132: Material | E132: Quantidade | F132: Unidade | G132: Preço Unitário | J132: Custo Horário
A133: Insumo | B133: SICRO3 | C133: M0191 | D133: Brita 1 | E133: 0.4126 | F133: m³ | G133: 149.1484 | J133: 61.5386
F134: Custo Total do Material => | J134: 61.5386
A135: D | B135: Banco | C135: Código | D135: Atividades Auxiliares | E135: Quantidade | F135: Unidade | G135: Preço Unitário | J135: Custo Horário
A136: Atividade Auxiliar | B136: SICRO3 | C136: 4016096 | D136: Escavação e carga de material de jazida com escavadeira hidráulica de 1,56 m³ | E136: 0.77019 | F136: m³ | G136: 1.33 | J136: 1.0244
F137: Custo Total das Atividades => | J137: 1.0244
A138: E | B138: Banco | C138: Insumo | D138: Tempos Fixos | E138: Código | F138: Quantidade | G138: Unidade | H138: Preço Unitário | J138: Custo Horário
A139: Tempo Fixo | B139: SICRO3 | C139: 4016096 | D139: Carga, manobra e descarga de agregados ou solos em caminhão basculante de 10 m³ - carga com escavadeira de 1,56 m³(exclusa) e descarga livre | E139: 5914354 | F139: 1.44411 | G139: t | H139: 1.79 | J139: 2.585
A140: Tempo Fixo | B140: SICRO3 | C140: M0191 | D140: Carga, manobra e descarga de agregados ou solos em caminhão basculante de 10 m³ - carga com carregadeira de 3,40 m³(exclusa) e descarga livre | E140: 5914647 | F140: 0.6189 | G140: t | H140: 1.71 | J140: 1.0583
F141: Custo Total dos Tempos Fixos => | J141: 3.6433
A142: F | B142: Banco | C142: Insumo | D142: Momento de Transporte | E142: Quantidade | F142: Unidade | G142: Distância Média de Transporte (DMT) | J142: Custo Horário
G143: LN | H143: RP | I143: P
A144: Momento de Transporte | B144: SICRO3 | C144: 4016096 | D144: Escavação e carga de material de jazida com escavadeira hidráulica de 1,56 m³ - Caminhão basculante com capacidade de 10 m³ - 188 kW | E144: 1.44411 | F144: tkm | G144: 5914359 0,000 R$ 1,19 | H144: 5914374 0,000 R$ 0,95 | I144: 5914389 0,000 R$ 0,78 | J144: 0
A145: Momento de Transporte | B145: SICRO3 | C145: M0191 | D145: Brita 1 - Caminhão basculante com capacidade de 10 m³ - 188 kW | E145: 0.6189 | F145: tkm | G145: 5914359 0,000 R$ 1,19 | H145: 5914374 0,000 R$ 0,95 | I145: 5914389 0,000 R$ 0,78 | J145: 0
F146: Custo total dos Momentos de Transportes => | J146: 0
A150: 14 | B150: Código | C150: Banco | D150: Descrição | E150: Tipo | G150: Und | H150: Quant. | I150: Valor Unit | J150: Total
A151: Composição | B151: 4011209 | C151: SICRO3 | D151: Regularização do subleito | G151: m² | H151: 1 | I151: 1.12 | J151: 1.12
A152: A | B152: Código | C152: Banco | D152: Equipamentos | E152: Quantidade | F152: Utilização | H152: Custo Operacional | J152: Custo Horário
F153: Operativa | G153: Improdutiva | H153: Operativa | I153: Improdutiva
A154: Insumo | B154: E9571 | C154: SICRO3 | D154: Caminhão tanque com capacidade de 10.000 l - 188 kW | E154: 2 | F154: 0.51 | G154: 0.49 | H154: 315.7824 | I154: 81.2249 | J154: 401.6985
A155: Insumo | B155: E9518 | C155: SICRO3 | D155: Grade de 24 discos rebocável de D = 60 cm (24”) | E155: 1 | F155: 0.69 | G155: 0.31 | H155: 4.8604 | I155: 3.3847 | J155: 4.4029
A156: Insumo | B156: E9524 | C156: SICRO3 | D156: Motoniveladora - 93 kW | E156: 1 | F156: 0.71 | G156: 0.29 | H156: 280.1411 | I156: 121.0896 | J156: 234.0162
A157: Insumo | B157: E9762 | C157: SICRO3 | D157: Rolo compactador de pneus autopropelido de 27 t - 85 kW | E157: 1 | F157: 0.96 | G157: 0.04 | H157: 248.3853 | I157: 120.0527 | J157: 243.252
A158: Insumo | B158: E9685 | C158: SICRO3 | D158: Rolo compactador pé de carneiro vibratório autopropelido por pneus de 11,6 t - 82 kW | E158: 1 | F158: 1 | G158: 0 | H158: 212.4712 | I158: 93.9933 | J158: 212.4712
A159: Insumo | B159: E9577 | C159: SICRO3 | D159: Trator agrícola sobre pneus - 77 kW | E159: 1 | F159: 0.69 | G159: 0.31 | H159: 140.8575 | I159: 50.4418 | J159: 112.8286
F160: Custo Horário de Equipamentos => | J160: 1208.6694
A161: B | B161: Código | C161: Banco | D161: Mão de Obra | E161: Quantidade | F161: Salário Hora | J161: Custo Horário
A162: Insumo | B162: P9824 | C162: SICRO3 | D162: Servente | E162: 1 | I162: 20.6527 | J162: 20.6527
F163: Custo Horário da Mão de Obra => | J163: 20.6527
F164: Adc.M.O. - Ferramentas (0,0%) => | J164: 0
F165: Custo Horário de Execução => | J165: 1229.3221
F166: Fator de Influencia da Chuva - FIC => | J166: 0.0214
F167: Custo do FIC => | J167: 0.0235
F168: Produção de Equipe => | J168: 1121.33
F169: Custo Unitário de Execução => | J169: 1.0963
A173: 15 | B173: Código | C173: Banco | D173: Descrição | E173: Tipo | G173: Und | H173: Quant. | I173: Valor Unit | J173: Total
A174: Composição | B174: 5213440 | C174: SICRO3 | D174: Placa de regulamentação em aço D = 0,60 m - película retrorrefletiva tipo I + SI - fornecimento e implantação | G174: un | H174: 1 | I174: 252.07 | J174: 252.07
A175: A | B175: Código | C175: Banco | D175: Equipamentos | E175: Quantidade | F175: Utilização | H175: Custo Operacional | J175: Custo Horário
F176: Operativa | G176: Improdutiva | H176: Operativa | I176: Improdutiva
A177: Insumo | B177: E9687 | C177: SICRO3 | D177: Caminhão carroceria com capacidade de 5 t - 115 kW | E177: 1 | F177: 0.3 | G177: 0.7 | H177: 144.8526 | I177: 57.0021 | J177: 83.3573
F178: Custo Horário de Equipamentos => | J178: 83.3573
A179: B | B179: Código | C179: Banco | D179: Mão de Obra | E179: Quantidade | F179: Salário Hora | J179: Custo Horário
A180: Insumo | B180: P9830 | C180: SICRO3 | D180: Montador | E180: 1 | I180: 30.7099 | J180: 30.7099
A181: Insumo | B181: P9824 | C181: SICRO3 | D181: Servente | E181: 2 | I181: 20.6527 | J181: 41.3054
F182: Custo Horário da Mão de Obra => | J182: 72.0153
F183: Adc.M.O. - Ferramentas (0,0%) => | J183: 0
F184: Custo Horário de Execução => | J184: 155.3726
F185: Fator de Influencia da Chuva - FIC => | J185: 0
F186: Custo do FIC => | J186: 0
F187: Produção de Equipe => | J187: 3
F188: Custo Unitário de Execução => | J188: 51.7909
A189: D | B189: Banco | C189: Código | D189: Atividades Auxiliares | E189: Quantidade | F189: Unidade | G189: Preço Unitário | J189: Custo Horário
A190: Atividade Auxiliar | B190: SICRO3 | C190: 5213414 | D190: Placa em aço nº 16 galvanizado com película retrorrefletiva tipo I + SI - confecção | E190: 0.35994 | F190: m² | G190: 556.41 | J190: 200.2742
F191: Custo Total das Atividades => | J191: 200.2742
A195: 16 | B195: Código | C195: Banco | D195: Descrição | E195: Tipo | G195: Und | H195: Quant. | I195: Valor Unit | J195: Total
A196: Composição | B196: 5213464 | C196: SICRO3 | D196: Placa de advertência em aço, lado de 0,60 m - película retrorrefletiva tipo I + SI - fornecimento e implantação | G196: un | H196: 1 | I196: 252.1 | J196: 252.1
A197: A | B197: Código | C197: Banco | D197: Equipamentos | E197: Quantidade | F197: Utilização | H197: Custo Operacional | J197: Custo Horário
F198: Operativa | G198: Improdutiva | H198: Operativa | I198: Improdutiva
A199: Insumo | B199: E9687 | C199: SICRO3 | D199: Caminhão carroceria com capacidade de 5 t - 115 kW | E199: 1 | F199: 0.3 | G199: 0.7 | H199: 144.8526 | I199: 57.0021 | J199: 83.3573
F200: Custo Horário de Equipamentos => | J200: 83.3573
A201: B | B201: Código | C201: Banco | D201: Mão de Obra | E201: Quantidade | F201: Salário Hora | J201: Custo Horário
A202: Insumo | B202: P9830 | C202: SICRO3 | D202: Montador | E202: 1 | I202: 30.7099 | J202: 30.7099
A203: Insumo | B203: P9824 | C203: SICRO3 | D203: Servente | E203: 2 | I203: 20.6527 | J203: 41.3054
F204: Custo Horário da Mão de Obra => | J204: 72.0153
F205: Adc.M.O. - Ferramentas (0,0%) => | J205: 0
F206: Custo Horário de Execução => | J206: 155.3726
F207: Fator de Influencia da Chuva - FIC => | J207: 0
F208: Custo do FIC => | J208: 0
F209: Produção de Equipe => | J209: 3
F210: Custo Unitário de Execução => | J210: 51.7909
A211: D | B211: Banco | C211: Código | D211: Atividades Auxiliares | E211: Quantidade | F211: Unidade | G211: Preço Unitário | J211: Custo Horário
A212: Atividade Auxiliar | B212: SICRO3 | C212: 5213414 | D212: Placa em aço nº 16 galvanizado com película retrorrefletiva tipo I + SI - confecção | E212: 0.36 | F212: m² | G212: 556.41 | J212: 200.3076
F213: Custo Total das Atividades => | J213: 200.3076
A217: 17 | B217: Código | C217: Banco | D217: Descrição | E217: Tipo | G217: Und | H217: Quant. | I217: Valor Unit | J217: Total
A218: Composição | B218: 5213863 | C218: SICRO3 | D218: Suporte metálico galvanizado para placa de advertência ou regulamentação - lado ou diâmetro de 0,60 m - fornecimento e implantação | G218: un | H218: 1 | I218: 453.39 | J218: 453.39
A219: A | B219: Código | C219: Banco | D219: Equipamentos | E219: Quantidade | F219: Utilização | H219: Custo Operacional | J219: Custo Horário
F220: Operativa | G220: Improdutiva | H220: Operativa | I220: Improdutiva
A221: Insumo | B221: E9687 | C221: SICRO3 | D221: Caminhão carroceria com capacidade de 5 t - 115 kW | E221: 1 | F221: 0.3 | G221: 0.7 | H221: 144.8526 | I221: 57.0021 | J221: 83.3573
F222: Custo Horário de Equipamentos => | J222: 83.3573
A223: B | B223: Código | C223: Banco | D223: Mão de Obra | E223: Quantidade | F223: Salário Hora | J223: Custo Horário
A224: Insumo | B224: P9830 | C224: SICRO3 | D224: Montador | E224: 1 | I224: 30.7099 | J224: 30.7099
A225: Insumo | B225: P9824 | C225: SICRO3 | D225: Servente | E225: 1 | I225: 20.6527 | J225: 20.6527
F226: Custo Horário da Mão de Obra => | J226: 51.3626
F227: Adc.M.O. - Ferramentas (0,0%) => | J227: 0
F228: Custo Horário de Execução => | J228: 134.7199
F229: Fator de Influencia da Chuva - FIC => | J229: 0
F230: Custo do FIC => | J230: 0
F231: Produção de Equipe => | J231: 4.1
F232: Custo Unitário de Execução => | J232: 32.8585
A233: C | B233: Banco | C233: Código | D233: Material | E233: Quantidade | F233: Unidade | G233: Preço Unitário | J233: Custo Horário
A234: Insumo | B234: SICRO3 | C234: M0789 | D234: Conjunto para fixação de placas em aço galvanizado composto por barra chata, abraçadeira, parafusos, | E234: 0.697 | F234: kg | G234: 30.3511 | J234: 21.1547
A235: Insumo | B235: SICRO3 | C235: M0787 | D235: Suporte em aço-carbono galvanizado tipo perfil C para placa de sinalização | E235: 12.717 | F235: kg | G235: 29.35 | J235: 373.244
F236: Custo Total do Material => | J236: 394.3987
... 792 more rows

Sheet Curva ABC de Serviços
C1: Obra | D1: Bancos | E1: B.D.I. | H1: Encargos Sociais
C2: ITEM 2 - INTERTRAVADO | D2: SINAPI - 07/2024 - Sergipe SICRO3 - 04/2024 - Sergipe ORSE - 06/2024 - Sergipe | E2: ='RESUMO MODULO TOTAL'!$J$7 -> 0.2308 | H2: Não Desonerado: embutido nos preços unitário dos insumos de mão de obra, de acordo com as bases.
A3: Curva ABC de Serviços
A4: Código | B4: Banco | C4: Descrição | D4: Reajustamento | E4: Und | F4: Quant. | G4: Valor Unit | H4: Total | I4: Peso (%) | J4: Peso Acumulado (%)
A5: 36170 | B5: SINAPI | C5: Bloquete/piso intertravado de concreto - modelo onda/16 faces/retangular/tijolinho/paver/holandes/paralelepipedo, *22 cm c 11 cm, e= 8 cm, resistência de 35 Mpa (NBR 9781), cor natural | D5: Pavimentos de Concreto de Cimento Portland | E5: m² | F5: 120480 | G5: 82.68 | H5: =VLOOKUP($A5,'RESUMO MODULO TOTAL'!$D$12:$N$48,11,FALSE) -> 9961286.4 | I5: =H5/$H$33 -> 0.3407762564 | J5: =I5 -> 0.3407762564
A6: 2003373 | B6: SICRO | C6: Meio-fio de concreto - MFC 03 - areia e brita comerciais - fôrma de madeira | D6: Drenagem | E6: m | F6: 48000 | G6: 82.46 | H6: =VLOOKUP($A6,'RESUMO MODULO TOTAL'!$D$12:$N$48,11,FALSE) -> 3958080 | I6: =H6/$H$33 -> 0.1354061745 | J6: =I6+J5 -> 0.476182431
A7: 5914389 | B7: SICRO | C7: Transporte com caminhão basculante de 10 m³ - rodovia pavimentada | D7: Terraplenagem | E7: tkm | F7: 3713961.69 | G7: 0.96 | H7: =VLOOKUP($A7,'RESUMO MODULO TOTAL'!$D$12:$N$48,11,FALSE) -> 3426381.95 | I7: =H7/$H$33 -> 0.1172167496 | J7: =I7+J6 -> 0.5933991806
A8: 5915014 | B8: SICRO | C8: Transporte com caminhão carroceria com capacidade de 11 t e com guindauto de 45 t.m - rodovia pavimentada | D8: Terraplenagem | E8: tkm | F8: 2112000 | G8: 1.67 | H8: =VLOOKUP($A8,'RESUMO MODULO TOTAL'!$D$12:$N$48,11,FALSE) -> 3527040 | I8: 0.1206602681 | J8: 0.7140594487
A9: CODEVASF 325 | B9: SINAPI | C9: Execução de pavimento em piso intertravado, com bloco 16 faces de 22 x 11 cm, espessura 8 cm. af_10/2022 - exclusive fornecimento de bloquete | D9: Pavimentos de Concreto de Cimento Portland | E9: m² | F9: 120000 | G9: 21.48 | H9: =VLOOKUP($A9,'RESUMO MODULO TOTAL'!$D$12:$N$48,11,FALSE) -> 2577600 | I9: 0.08817986385 | J9: 0.8022393125
A10: 4011233 | B10: SICRO | C10: Sub-base estabilizada granulometricamente com mistura solo brita (70% - 30%) na pista com material de jazida e brita comercial | D10: Pavimentação | E10: m³ | F10: 18000 | G10: 90.35 | H10: =VLOOKUP($A10,'RESUMO MODULO TOTAL'!$D$12:$N$48,11,FALSE) -> 1626300 | I10: 0.0556358289 | J10: 0.8578751414
A11: Adm Local | B11: Codevasf | C11: Administração Local da Obra | D11: Administração Local | E11: und | F11: 1 | G11: 1519136.51 | H11: =VLOOKUP($A11,'RESUMO MODULO TOTAL'!$D$12:$N$48,11,FALSE) -> 1519136.51 | I11: 0.05196975893 | J11: 0.9098449004
A12: 5915321 | B12: SICRO | C12: Transporte com caminhão basculante de 14 m³ - rodovia pavimentada (colchão de areia) | D12: Terraplenagem | E12: tkm | F12: 599400 | G12: 0.76 | H12: ='RESUMO MODULO TOTAL'!$N$26+'RESUMO MODULO TOTAL'!$N$27 -> 455544 | I12: 0.0155841899 | J12: 0.9254290903
A13: Proj. Executivo | B13: Codevasf | C13: Projeto Executivo | D13: Consultoria, Supervisão e Projeto | E13: m² | F13: 120000 | G13: 2.91 | H13: =VLOOKUP($A13,'RESUMO MODULO TOTAL'!$D$12:$N$48,11,FALSE) -> 349200 | I13: 0.01194615474 | J13: 0.937375245
A14: 5502114 | B14: SICRO | C14: Escavação, carga e transporte de material de 1ª categoria - DMT de 1.000 a 1.200 m - caminho de serviço em leito natural -com escavadeira e caminhão basculante de 14 m³ | D14: Terraplenagem | E14: m³ | F14: 33600 | G14: 9.36 | H14: =VLOOKUP($A14,'RESUMO MODULO TOTAL'!$D$12:$N$48,11,FALSE) -> 314496 | I14: 0.01075892864 | J14: 0.9481341736
A15: Mob | B15: Codevasf | C15: Mobilização | D15: Mobilização e Desmobilização | E15: kmxfrente | F15: 1200 | G15: 236.26 | H15: =VLOOKUP($A15,'RESUMO MODULO TOTAL'!$D$12:$N$48,11,FALSE) -> 283968 | I15: 0.009714563772 | J15: 0.9578487374
A16: Mob | B16: Codevasf | C16: Desmobilização | D16: Mobilização e Desmobilização | E16: kmxfrente | F16: 1200 | G16: 236.26 | H16: =VLOOKUP($A16,'RESUMO MODULO TOTAL'!$D$12:$N$48,11,FALSE) -> 283968 | I16: 0.009714563772 | J16: 0.9675633012
A17: 5914374 | B17: SICRO | C17: Transporte com caminhão basculante de 10 m³ - rodovia em revestimento primário | D17: Terraplenagem | E17: tkm | F17: 165089.13 | G17: 1.16 | H17: =VLOOKUP($A17,'RESUMO MODULO TOTAL'!$D$12:$N$48,11,FALSE) -> 191503.39 | I17: 0.006551343442 | J17: 0.9741146446
A18: 4011209 | B18: SICRO | C18: Regularização do subleito | D18: Pavimentação | E18: m² | F18: 120000 | G18: 1.37 | H18: =VLOOKUP($A18,'RESUMO MODULO TOTAL'!$D$12:$N$48,11,FALSE) -> 164400 | I18: 0.005624134706 | J18: 0.9797387793
A19: 5213400 | B19: SICRO | C19: Pintura de faixa com tinta acrílica - espessura de 0,4 mm | D19: Sinalização Horizontal | E19: m² | F19: 4800 | G19: 29.82 | H19: =VLOOKUP($A19,'RESUMO MODULO TOTAL'!$D$12:$N$48,11,FALSE) -> 143136 | I19: 0.004896691881 | J19: 0.9846354712
A20: 5213863 | B20: SICRO | C20: Suporte metálico galvanizado para placa de advertência ou regulamentação - lado ou diâmetro de 0,60 m - fornecimento e implantação | D20: Sinalização Vertical | E20: und | F20: 144 | G20: 558.03 | H20: =VLOOKUP($A20,'RESUMO MODULO TOTAL'!$D$12:$N$48,11,FALSE) -> 80356.32 | I20: 0.00274899494 | J20: 0.9873844662
A21: CODEVASF 104 | B21: Codevasf | C21: Conserto de quebra no ramal na rua sem pavimento com fornecimento de material hidráulico | D21: Conservação Rodoviária | E21: m | F21: 2400 | G21: 28.97 | H21: =VLOOKUP($A21,'RESUMO MODULO TOTAL'!$D$12:$N$48,11,FALSE) -> 69528 | I21: 0.002378557408 | J21: 0.9897630236
A22: 5914359 | B22: SICRO | C22: Transporte com caminhão basculante de 10 m³ - rodovia em leito natural | D22: Terraplenagem | E22: tkm | F22: 41272.28 | G22: 1.46 | H22: =VLOOKUP($A22,'RESUMO MODULO TOTAL'!$D$12:$N$48,11,FALSE) -> 60257.52 | I22: 0.002061413683 | J22: 0.9918244372
A23: Canteiro | B23: Codevasf | C23: Canteiro de Obras e Almoxarifado | D23: Administração Local | E23: frente | F23: 12 | G23: 4909.72 | H23: =VLOOKUP($A23,'RESUMO MODULO TOTAL'!$D$12:$N$48,11,FALSE) -> 58916.64 | I23: 0.002015542091 | J23: 0.9938399793
A24: 103689 | B24: SINAPI | C24: Fornecimento e instalação de placa de obra com chapa galvanizada e estrutura de madeira. af_03/2022_ps | D24: Sinalização Vertical | E24: m² | F24: 96 | G24: 429.45 | H24: =VLOOKUP($A24,'RESUMO MODULO TOTAL'!$D$12:$N$48,11,FALSE) -> 41227.2 | I24: 0.001410385197 | J24: 0.9952503645
A25: 5914479 | B25: SICRO | C25: Transporte com caminhão carroceria de 15 t - rodovia pavimentada | D25: Terraplenagem | E25: tkm | F25: 41400.77 | G25: 0.84 | H25: =VLOOKUP($A25,'RESUMO MODULO TOTAL'!$D$12:$N$48,11,FALSE) -> 34776.64 | I25: 0.001189711119 | J25: 0.9964400757
A26: 4413942 | B26: SICRO | C26: Espalhamento de material em bota-fora | D26: Terraplenagem | E26: m³ | F26: 12000 | G26: 2.37 | H26: =VLOOKUP($A26,'RESUMO MODULO TOTAL'!$D$12:$N$48,11,FALSE) -> 28440 | I26: 0.000972934252 | J26: 0.9974130099
A27: 4915724 | B27: SICRO | C27: Caiação mecanizada com fixador de cal | D27: Conservação Rodoviária | E27: m² | F27: 11520 | G27: 2.25 | H27: =VLOOKUP($A27,'RESUMO MODULO TOTAL'!$D$12:$N$48,11,FALSE) -> 25920 | I27: 0.0008867248879 | J27: 0.9982997348
A28: 5213464 | B28: SICRO | C28: Placa de advertência em aço, lado de 0,60 m - película retrorrefletiva tipo I + SI - fornecimento e implantação | D28: Sinalização Vertical | E28: und | F28: 72 | G28: 310.28 | H28: =VLOOKUP($A28,'RESUMO MODULO TOTAL'!$D$12:$N$48,11,FALSE) -> 22340.16 | I28: 0.0007642583284 | J28: 0.9990639931
A29: 5213440 | B29: SICRO | C29: Placa de regulamentação em aço D = 0,60 m - película retrorrefletiva tipo I + SI - fornecimento e implantação | D29: Sinalização Vertical | E29: und | F29: 72 | G29: 310.24 | H29: =VLOOKUP($A29,'RESUMO MODULO TOTAL'!$D$12:$N$48,11,FALSE) -> 22337.28 | I29: 0.0007641598034 | J29: 0.9998281529
A30: 5914464 | B30: SICRO | C30: Transporte com caminhão carroceria de 15 t - rodovia em revestimento primário | D30: Terraplenagem | E30: tkm | F30: 3680.07 | G30: 1.04 | H30: =VLOOKUP($A30,'RESUMO MODULO TOTAL'!$D$12:$N$48,11,FALSE) -> 3827.27 | I30: 0.0001309311559 | J30: 0.9999590841
A31: 5914449 | B31: SICRO | C31: Transporte com caminhão carroceria de 15 t - rodovia em leito natural | D31: Terraplenagem | E31: tkm | F31: 920.02 | G31: 1.3 | H31: =VLOOKUP($A31,'RESUMO MODULO TOTAL'!$D$12:$N$48,11,FALSE) -> 1196.02 | I31: 4.091592208e-05 | J31: 1
F33: Total | H33: =SUM(H5:H31) -> 29231163.3
